Workbook

Sheet index
A1: Ankünfte und Übernachtungen in den Beherbergungsbetrieben nach Herkunftsland der Gäste - Winterhalbjahre 2020/21 und 2019/20 | B1: Tab. 1a nat | C1: Arrivi e presenze negli esercizi ricettivi per paese di provenienza - Stagioni invernali 2020/21 e 2019/20
A2: Ankünfte und Übernachtungen in den Beherbergungsbetrieben nach Betriebskategorie und -art - Winterhalbjahre 2020/21 und 2019/20 | B2: Tab. 1a cat | C2: Arrivi e presenze negli esercizi ricettivi per categoria e tipo di esercizio - Stagioni invernali 2020/21 e 2019/20
A3: Ankünfte und Übernachtungen der inländischen Gäste in den Beherbergungsbetrieben nach Herkunftsgebiet - Winterhalbjahre 2020/21 und 2019/20 | B3: Tab. 2a | C3: Arrivi e presenze dall'Italia negli esercizi ricettivi per regione di provenienza - Stagioni invernali 2020/21 und 2019/20
A4: Beherbergungsbetriebe nach Betriebskategorie und -art - Winterhalbjahr 2020/21 | B4: Tab. 4a | C4: Esercizi ricettivi per categoria e tipo d'esercizio - Stagione invernale 2020/21
A5: Index der Bettenauslastung in den Beherbergungsbetrieben nach Betriebskategorie und -art - Winterhalbjahr 2020/21 | B5: Tab. 5a | C5: Indice di utilizzazione dei posti letto negli esercizi ricettivi per categoria e tipo d'esercizio - Stagione invernale 2020/21
A6: Index der Brutto-Auslastung der Betten in den gastgewerblichen Beherbergungsbetrieben - Winterhalbjahre 1992/93-2020/21 | B6: Tab. 6a | C6: Indice di utilizzazione lordo dei posti letto negli esercizi alberghieri - Stagioni invernali 1992/93-2020/21
A7: Übernachtungen der Gäste in den Beherbergungsbetrieben nach Bezirksgemeinschaft - Winterhalbjahre 1991/92-2020/21 | B7: Tab. 7a | C7: Presenze dei clienti negli esercizi ricettivi per comunità comprensoriale - Stagioni invernali 1991/92-2020/21
A8: Übernachtungen der inländischen und ausländischen Gäste in den Beherbergungsbetrieben nach Bezirksgemeinschaft - Winterhalbjahre 1991/92-2020/21 | B8: Tab. 8a | C8: Presenze dall'Italia e dall'estero negli esercizi ricettivi per comunità comprensoriale - Stagioni invernali 1991/92-2020/21
A9: Übernachtungen in den Beherbergungsbetrieben nach Herkunftsland der Gäste - Winterhalbjahre 1991/92-2020/21 | B9: Tab. 9a | C9: Presenze negli esercizi ricettivi per paese di provenienza - Stagioni invernali 1991/92-2020/21
A10: Übernachtungen der inländischen Gäste in den Beherbergungsbetrieben nach Bezirksgemeinschaft - Winterhalbjahre 1991/92-2020/21 | B10: Tab. 10a | C10: Presenze dall'Italia negli esercizi ricettivi per comunità comprensoriale - Stagioni invernali 1991/92-2020/21
A11: Index der Brutto-Auslastung der Betten in den gastgewerblichen Beherbergungsbetrieben nach Bezirksgemeinschaft - Winterhalbjahre 1991/92-2020/21 | B11: Tab. 11a | C11: Indice di utilizzazione lordo dei posti letto negli esercizi alberghieri per comunità comprensoriale - Stagioni invernali 1991/92-2020/21
A12: Ankünfte und Übernachtungen nach Gemeinde - Winterhalbjahre 2020/21 | B12: Tab. 12a | C12: Arrivi e presenze per comune - Stagioni invernali 2020/21
A13: Ankünfte und Übernachtungen nach Tourismusverein - Winterhalbjahre 2020/21 | B13: Tab. 13a | C13: Arrivi e presenze per associazioni turistici - Stagioni invernali 2020/21

Sheet tab1a nat
A1: Tab. 1 nat a | H1: INDEX / INDICE
A3: Ankünfte und Übernachtungen in den Beherbergungsbetrieben nach Herkunftsland der Gäste - Winterhalbjahre 2020/21 und 2019/20
A4: Südtirol insgesamt
A5: Arrivi e presenze negli esercizi ricettivi per paese di provenienza - Stagioni invernali 2020/21 e 2019/20
A6: Totale provincia
C8: Winterhalbjahr 2020/21 Stagione invernale 2020/21
C9: Ankünfte / Arrivi | E9: Übernachtungen / Presenze | H9: Mittlere
C10: Anzahl | D10: % Veränd. geg. 19/20 | E10: Anzahl | F10: % Veränd. geg. 19/20 | G10: % | H10: Aufenthaltsdauer
A11: Herkunftsland | B11: Paese di provenienza | C11: Numero | D11: Variaz. % risp. 19/20 | E11: Numero | F11: Variaz. % risp. 19/20 | H11: Permanenza media
A13: Italien | B13: Italia | C13: 134001 | D13: -87.1 | E13: 426739 | F13: -87.8 | G13: 68.4 | H13: 3.2
A14: Deutschland | B14: Germania | C14: 11841 | D14: -98.3 | E14: 54168 | F14: -98.5 | G14: 8.7 | H14: 4.6
A15: Übriges Europa | B15: Altri Paesi Europei | C15: 3036 | D15: -91.4 | E15: 26040 | F15: -87.3 | G15: 4.2 | H15: 8.6
A16: Schweiz und Liechtenstein | B16: Svizzera e Liechtenstein | C16: 4540 | D16: -92.3 | E16: 19598 | F16: -92.9 | G16: 3.1 | H16: 4.3
A17: Österreich | B17: Austria | C17: 6334 | D17: -91.3 | E17: 18232 | F17: -92.4 | G17: 2.9 | H17: 2.9
A18: Tschechische Republik | B18: Repubblica Ceca | C18: 1661 | D18: -96.7 | E18: 8981 | F18: -96.3 | G18: 1.4 | H18: 5.4
A19: Polen | B19: Polonia | C19: 1048 | D19: -97.5 | E19: 7806 | F19: -97 | G19: 1.3 | H19: 7.4
A20: Slowakei | B20: Slovacchia | C20: 569 | D20: -93.6 | E20: 4848 | F20: -90.3 | G20: 0.8 | H20: 8.5
A21: Frankreich | B21: Francia | C21: 1052 | D21: -90.3 | E21: 3819 | F21: -92.9 | G21: 0.6 | H21: 3.6
A22: Slowenien | B22: Slovenia | C22: 731 | D22: -97.2 | E22: 3211 | F22: -97.3 | G22: 0.5 | H22: 4.4
A23: Spanien | B23: Spagna | C23: 482 | D23: -91.1 | E23: 2747 | F23: -88.9 | G23: 0.4 | H23: 5.7
A24: Niederlande | B24: Paesi Bassi | C24: 721 | D24: -98.4 | E24: 2283 | F24: -99.1 | G24: 0.4 | H24: 3.2
A25: Kroazien | B25: Croazia | C25: 376 | D25: -97.7 | E25: 2070 | F25: -97.6 | G25: 0.3 | H25: 5.5
A26: Vereinigtes Königreich | B26: Regno Unito | C26: 308 | D26: -98.7 | E26: 2043 | F26: -98.6 | G26: 0.3 | H26: 6.6
A27: Schweden | B27: Svezia | C27: 456 | D27: -94.1 | E27: 1915 | F27: -95.6 | G27: 0.3 | H27: 4.2
A28: Ungarn | B28: Ungheria | C28: 268 | D28: -92.3 | E28: 1520 | F28: -91.7 | G28: 0.2 | H28: 5.7
A29: Belgien | B29: Belgio | C29: 352 | D29: -98.5 | E29: 1275 | F29: -99.1 | G29: 0.2 | H29: 3.6
A30: Norwegen | B30: Norvegia | C30: 217 | D30: -95.6 | E30: 1174 | F30: -95.4 | G30: 0.2 | H30: 5.4
A31: Luxemburg | B31: Lussemburgo | C31: 171 | D31: -95.7 | E31: 1002 | F31: -96.1 | G31: 0.2 | H31: 5.9
A32: Finnland | B32: Finlandia | C32: 150 | D32: -94.2 | E32: 955 | F32: -93.2 | G32: 0.2 | H32: 6.4
A33: Portugal | B33: Portogallo | C33: 114 | D33: -91.8 | E33: 648 | F33: -90.8 | G33: 0.1 | H33: 5.7
A34: Dänemark | B34: Danimarca | C34: 132 | D34: -97.9 | E34: 517 | F34: -98.4 | G34: 0.1 | H34: 3.9
A35: Griechenland | B35: Grecia | C35: 130 | D35: -89.8 | E35: 516 | F35: -91.6 | G35: 0.1 | H35: 4
A36: Irland | B36: Irlanda | C36: 40 | D36: -97.4 | E36: 416 | F36: -94.8 | G36: 0.1 | H36: 10.4
A37: Türkei | B37: Turchia | C37: 77 | D37: -91 | E37: 156 | F37: -96.1 | G37: 0 | H37: 2
A38: Europa insgesamt | B38: Paesi europei | C38: =SUM(C13:C37) -> 168807 | D38: =(C38-C84)/C84*100 -> -92.30836176 | E38: =SUM(E13:E37) -> 592679 | F38: =(E38-E84)/E84*100 -> -93.70304474 | G38: =SUM(G13:G37) -> 95 | H38: =E38/C38 -> 3.510985919
A40: Afrika | B40: Africa | C40: 487 | D40: -84.4 | E40: 9229 | F40: -50.3 | G40: 1.5 | H40: 19
A41: Vereinigte Staaten | B41: Stati Uniti d'America | C41: 704 | D41: -93.3 | E41: 5182 | F41: -88.4 | G41: 0.8 | H41: 7.4
A42: Kanada | B42: Canada | C42: 556 | D42: -69.1 | E42: 5116 | F42: -49.7 | G42: 0.8 | H42: 9.2
A43: Russland | B43: Russia | C43: 551 | D43: -97.4 | E43: 3905 | F43: -97 | G43: 0.6 | H43: 7.1
A44: Sonstiges Länder Asiens | B44: Altri Paesi dell'Asia | C44: 433 | D44: -96.2 | E44: 3690 | F44: -92 | G44: 0.6 | H44: 8.5
A45: Südamerika | B45: Sud America | C45: 344 | D45: -93.7 | E45: 3196 | F45: -86.5 | G45: 0.5 | H45: 9.3
A46: Japan | B46: Giappone | C46: 138 | D46: -85.8 | E46: 817 | F46: -78.6 | G46: 0.1 | H46: 5.9
A47: Andere Länder | B47: Altri Paesi | C47: 84 | D47: -98.2 | E47: 352 | F47: -98.7 | G47: 0.1 | H47: 4.2
A48: Außereurop. Länder insgesamt | B48: Paesi extraeuropei | C48: =SUM(C40:C47) -> 3297 | D48: =(C48-C94)/C94*100 -> -94.44669025 | E48: =SUM(E40:E47) -> 31487 | F48: =(E48-E94)/E94*100 -> -89.69558331 | G48: =SUM(G40:G47) -> 5 | H48: =E48/C48 -> 9.550197149
A50: INSGESAMT | B50: TOTALE | C50: 172104 | D50: -92.4 | E50: 624166 | F50: -93.6 | G50: 100 | H50: 3.6
C54: Winterhalbjahr 2019/20 Stagione invernale 2019/20
C55: Ankünfte / Arrivi | E55: Übernachtungen / Presenze | H55: Mittlere
C56: Anzahl | D56: % Veränd. geg. 18/19 | E56: Anzahl | F56: % Veränd. geg. 18/19 | G56: % | H56: Aufenthaltsdauer
A57: Herkunftsland | B57: Paese di provenienza | C57: Numero | D57: Variaz. % risp. 18/19 | E57: Numero | F57: Variaz. % risp. 18/19 | H57: Permanenza media
A59: Deutschland | B59: Germania | C59: 704733 | D59: -32.7 | E59: 3644405 | F59: -29.8 | G59: 37.5 | H59: 5.2
A60: Italien | B60: Italia | C60: 1036072 | D60: -14.4 | E60: 3490351 | F60: -12.8 | G60: 35.9 | H60: 3.4
A61: Schweiz und Liechtenstein | B61: Svizzera e Liechtenstein | C61: 58786 | D61: -44.2 | E61: 275557 | F61: -39.9 | G61: 2.8 | H61: 4.7
A62: Polen | B62: Polonia | C62: 41779 | D62: -17.4 | E62: 261290 | F62: -15.8 | G62: 2.7 | H62: 6.3
A63: Niederlande | B63: Paesi Bassi | C63: 44108 | D63: -16 | E63: 253944 | F63: -13.7 | G63: 2.6 | H63: 5.8
A64: Tschechische Republik | B64: Repubblica Ceca | C64: 50249 | D64: -23.8 | E64: 242894 | F64: -23.3 | G64: 2.5 | H64: 4.8
A65: Österreich | B65: Austria | C65: 72963 | D65: -34.4 | E65: 241472 | F65: -30.7 | G65: 2.5 | H65: 3.3
A66: Übriges Europa | B66: Altri Paesi Europei | C66: 35099 | D66: -14.3 | E66: 204446 | F66: -14.9 | G66: 2.1 | H66: 5.8
A67: Vereinigtes Königreich | B67: Regno Unito | C67: 24599 | D67: -15.2 | E67: 146509 | F67: -12.8 | G67: 1.5 | H67: 6
A68: Belgien | B68: Belgio | C68: 24254 | D68: -29.8 | E68: 135455 | F68: -30.5 | G68: 1.4 | H68: 5.6
A69: Slowenien | B69: Slovenia | C69: 26271 | D69: -8.3 | E69: 117489 | F69: -7.2 | G69: 1.2 | H69: 4.5
A70: Kroatien | B70: Croazia | C70: 16710 | D70: -2.1 | E70: 86169 | F70: -2.2 | G70: 0.9 | H70: 5.2
A71: Frankreich | B71: Francia | C71: 10836 | D71: -26 | E71: 53600 | F71: -21.1 | G71: 0.6 | H71: 4.9
A72: Slowakei | B72: Slovacchia | C72: 8874 | D72: -15.4 | E72: 49879 | F72: -14.7 | G72: 0.5 | H72: 5.6
A73: Schweden | B73: Svezia | C73: 7700 | D73: -23.6 | E73: 43439 | F73: -22.3 | G73: 0.4 | H73: 5.6
A74: Dänemark | B74: Danimarca | C74: 6153 | D74: -12.7 | E74: 32109 | F74: -11.2 | G74: 0.3 | H74: 5.2
A75: Norwegen | B75: Norvegia | C75: 4978 | D75: 14.8 | E75: 25624 | F75: 36.1 | G75: 0.3 | H75: 5.1
A76: Luxemburg | B76: Lussemburgo | C76: 3968 | D76: -16.6 | E76: 25462 | F76: -14.8 | G76: 0.3 | H76: 6.4
A77: Spanien | B77: Spagna | C77: 5423 | D77: -22.8 | E77: 24793 | F77: -17.3 | G77: 0.3 | H77: 4.6
A78: Ungarn | B78: Ungheria | C78: 3494 | D78: -32.6 | E78: 18207 | F78: -29.6 | G78: 0.2 | H78: 5.2
A79: Finnland | B79: Finlandia | C79: 2571 | D79: -11.5 | E79: 13944 | F79: -8.3 | G79: 0.1 | H79: 5.4
A80: Irland | B80: Irlanda | C80: 1542 | D80: -10.1 | E80: 8012 | F80: -8.1 | G80: 0.1 | H80: 5.2
A81: Portugal | B81: Portogallo | C81: 1388 | D81: -24.6 | E81: 7012 | F81: -22.6 | G81: 0.1 | H81: 5.1
A82: Griechenland | B82: Grecia | C82: 1278 | D82: -21.6 | E82: 6124 | F82: -12.4 | G82: 0.1 | H82: 4.8
A83: Türkei | B83: Turchia | C83: 854 | D83: -12 | E83: 3966 | F83: 0.6 | G83: 0 | H83: 4.6
A84: Europa insgesamt | B84: Paesi europei | C84: 2194682 | D84: -23.42862007 | E84: 9412152 | F84: -22.2678332 | G84: 96.9 | H84: 4.288617668
A86: Russland | B86: Russia | C86: 21396 | D86: -5 | E86: 132343 | F86: -4.6 | G86: 1.4 | H86: 6.2
A87: Sonstiges Länder Asiens | B87: Altri Paesi dell'Asia | C87: 11465 | D87: -27.6 | E87: 46164 | F87: -26.1 | G87: 0.5 | H87: 4
A88: Vereinigte Staaten | B88: Stati Uniti d'America | C88: 10469 | D88: -18.5 | E88: 44589 | F88: -10.6 | G88: 0.5 | H88: 4.3
A89: Südamerika | B89: Sud America | C89: 5457 | D89: -13.4 | E89: 23637 | F89: -12 | G89: 0.2 | H89: 4.3
A90: Andere Länder | B90: Altri Paesi extraeuropei | C90: 4695 | D90: -4.5 | E90: 26269 | F90: 4.2 | G90: 0.3 | H90: 5.6
A91: Afrika | B91: Africa | C91: 3118 | D91: -22.5 | E91: 18576 | F91: -21.1 | G91: 0.2 | H91: 6
A92: Kanada | B92: Canada | C92: 1801 | D92: -32.4 | E92: 10166 | F92: -26.6 | G92: 0.1 | H92: 5.6
A93: Japan | B93: Giappone | C93: 969 | D93: -27.6 | E93: 3824 | F93: -18.5 | G93: 0 | H93: 3.9
A94: Außereurop. Länder insgesamt | B94: Paesi extraeuropei | C94: 59370 | D94: -15.71550256 | E94: 305568 | F94: -11.4767776 | G94: 3.2 | H94: 5.146841839
A96: INSGESAMT | B96: TOTALE | C96: 2254052 | D96: -23.2 | E96: 9717720 | F96: -22 | G96: 100 | H96: 4.3

Sheet tab1a cat
A1: Tab. 1 cat a | I1: INDEX / INDICE
A3: Ankünfte und Übernachtungen in den Beherbergungsbetrieben nach Betriebskategorie und -art - Winterhalbjahre 2020/21 und 2019/20
A4: Südtirol insgesamt
A5: Arrivi e presenze negli esercizi ricettivi per categoria e tipo di esercizio - Stagioni invernali 2020/21 e 2019/20
A6: Totale provincia
B8: Winterhalbjahr 2020/21 / Stagione invernale 2020/21
B9: Ankünfte / Arrivi | D9: Übernachtungen / Presenze
B10: Anzahl | C10: % Veränd. geg. 19/20 | D10: Anzahl | E10: % Veränd. geg. 19/20 | F10: Mittlere Aufenthaltsdauer | G10: Betten | H10: % BruttoAuslastung
A11: Betriebskategorien und -arten | B11: Numero | C11: Variaz. % risp. 19/20 | D11: Numero | E11: Variaz. % risp. 19/20 | F11: Perman. media | G11: Posti letto | H11: % utilizzo lordo | I11: Categoria e tipo di esercizio
A13: Gastgewerbliche Betriebe | I13: Esercizi alberghieri
A14: 5 Sterne | B14: 24849 | C14: -70.887 | D14: 68435 | E14: -80.74 | F14: 2.754 | G14: 5293 | H14: 7.143 | I14: 5 Stelle
A15: 4 Sterne | B15: 49221 | C15: -91.618 | D15: 105507 | E15: -95.6 | F15: 2.144 | G15: 36506 | H15: 1.597 | I15: 4 Stelle
A16: 3 Sterne | B16: 52478 | C16: -93.326 | D16: 142910 | E16: -95.422 | F16: 2.723 | G16: 62173 | H16: 1.27 | I16: 3 Stelle
A17: 2 Sterne | B17: 12014 | C17: -92.897 | D17: 66237 | E17: -90.659 | F17: 5.513 | G17: 20442 | H17: 1.79 | I17: 2 Stelle
A18: 1 Stern | B18: 3876 | C18: -88.71 | D18: 17695 | E18: -87.799 | F18: 4.565 | G18: 5502 | H18: 1.777 | I18: 1 Stella
A19: Residences | B19: 9923 | C19: -94.906 | D19: 85232 | E19: -91.824 | F19: 8.589 | G19: 22133 | H19: 2.128 | I19: Residence
A20: Zusammen | B20: 152361 | C20: -91.796 | D20: 486016 | E20: -93.746 | F20: 3.19 | G20: 152049 | H20: 1.766 | I20: Totale
A22: Nicht-gastgewerbliche Betriebe | I22: Esercizi extralberghieri
A23: Campingplätze | B23: 2024 | C23: -94.008 | D23: 5384 | E23: -96.519 | F23: 2.66 | G23: 14664 | H23: 0.203 | I23: Campeggi
A24: Privatquartiere | B24: 8431 | C24: -95.479 | D24: 70931 | E24: -92.614 | F24: 8.413 | G24: 26184 | H24: 1.497 | I24: Alloggi privati
A25: Urlaub auf dem Bauernhof | B25: 7126 | C25: -94.916 | D25: 52320 | E25: -92.645 | F25: 7.342 | G25: 26122 | H25: 1.107 | I25: Esercizi agrituristici
A26: Andere Betriebe | B26: 2162 | C26: -94.085 | D26: 9515 | E26: -92.081 | F26: 4.401 | G26: 9976 | H26: 0.527 | I26: Altri esercizi
A27: Zusammen | B27: 19743 | C27: -95.026 | D27: 138150 | E27: -92.902 | F27: 6.997 | G27: 76946 | H27: 0.992 | I27: Totale
A29: Insgesamt | B29: 172104 | C29: -92.365 | D29: 624166 | E29: -93.577 | F29: 3.627 | G29: 228995 | H29: 1.506 | I29: Totale generale
B32: Winterhalbjahr 2019/20 / Stagione invernale 2019/20
B33: Ankünfte / Arrivi | D33: Übernachtungen / Presenze
B34: Anzahl | C34: % Veränd. geg. 18/19 | D34: Anzahl | E34: % Veränd. geg. 18/19 | F34: Mittlere Aufenthaltsdauer | G34: Betten | H34: % BruttoAuslastung
A35: Betriebskategorien und -arten | B35: Numero | C35: Variaz. % risp. 18/19 | D35: Numero | E35: Variaz. % risp. 18/19 | F35: Perman. media | G35: Posti letto | H35: % utilizzo lordo | I35: Categoria e tipo di esercizio
A37: Gastgewerbliche Betriebe | I37: Esercizi alberghieri
A38: 5 Sterne | B38: 85354 | C38: -1.893 | D38: 355326 | E38: -4.789 | F38: 4.163 | G38: 4387 | H38: 44.503 | I38: 5 Stelle
A39: 4 Sterne | B39: 587230 | C39: -22.803 | D39: 2397848 | E39: -21.652 | F39: 4.083 | G39: 35740 | H39: 36.863 | I39: 4 Stelle
A40: 3 Sterne | B40: 786268 | C40: -26.21 | D40: 3121466 | E40: -25.246 | F40: 3.97 | G40: 63523 | H40: 27 | I40: 3 Stelle
A41: 2 Sterne | B41: 169135 | C41: -26.448 | D41: 709117 | E41: -24.366 | F41: 4.193 | G41: 20639 | H41: 18.878 | I41: 2 Stelle
A42: 1 Stern | B42: 34331 | C42: -25.04 | D42: 145032 | E42: -24.036 | F42: 4.225 | G42: 5602 | H42: 14.225 | I42: 1 Stella
A43: Residences | B43: 194780 | C43: -19.221 | D43: 1042505 | E43: -19.188 | F43: 5.352 | G43: 21714 | H43: 26.38 | I43: Residence
A44: Zusammen | B44: 1857098 | C44: -23.58 | D44: 7771294 | E44: -22.503 | F44: 4.185 | G44: 151605 | H44: 28.165 | I44: Totale
A46: Nicht-gastgewerbliche Betriebe | I46: Esercizi extralberghieri
A47: Campingplätze | B47: 33779 | C47: -45.777 | D47: 154659 | E47: -41.562 | F47: 4.579 | G47: 14327 | H47: 5.931 | I47: Campeggi
A48: Privatquartiere | B48: 186468 | C48: -10.237 | D48: 960301 | E48: -11.073 | F48: 5.15 | G48: 25323 | H48: 20.836 | I48: Alloggi privati
A49: Urlaub auf dem Bauernhof | B49: 140153 | C49: -20.952 | D49: 711314 | E49: -20.233 | F49: 5.075 | G49: 25872 | H49: 15.106 | I49: Esercizi agrituristici
A50: Andere Betriebe | B50: 36554 | C50: -38.23 | D50: 120152 | E50: -36.594 | F50: 3.287 | G50: 10191 | H50: 6.478 | I50: Altri esercizi
A51: Zusammen | B51: 396954 | C51: -21.63 | D51: 1946426 | E51: -19.76 | F51: 4.903 | G51: 75713 | H51: 14.125 | I51: Totale
A53: Insgesamt | B53: 2254052 | C53: -23.244 | D53: 9717720 | E53: -21.969 | F53: 4.311 | G53: 227318 | H53: 23.489 | I53: Totale generale

Sheet tab2a
A1: Tab. 2 a | O1: INDEX / INDICE
A3: Ankünfte und Übernachtungen der inländischen Gäste in den Beherbergungsbetrieben nach Herkunftsgebiet - Winterhalbjahre 2020/21 und 2019/20
A5: Arrivi e presenze dall'Italia negli esercizi ricettivi per regione di provenienza - Stagioni invernali 2020/21 e 2019/20
B8: Winterhalbjahr 2020/21 / Stagione invernale 2020/21 | I8: Winterhalbjahr 2019/20 / Stagione invernale 2019/20
B9: Ankünfte / Arrivi | D9: Übernachtungen / Presenze | G9: Mittlere | I9: Ankünfte / Arrivi | K9: Übernachtungen / Presenze | N9: Mittlere
B10: Anzahl | C10: % Veränd. geg. 19/20 | D10: Anzahl | E10: % Veränd. geg. 19/20 | F10: % | G10: Aufenthaltsdauer | I10: Anzahl | J10: % Veränd. geg. 18/19 | K10: Anzahl | L10: % Veränd. geg. 18/19 | M10: % | N10: Aufenthaltsdauer
A11: Herkunftsgebiet | B11: Numero | C11: Variaz. % rispetto 19/20 | D11: Numero | E11: Variaz. % rispetto 19/20 | G11: Permanenza media | I11: Numero | J11: Variaz. % rispetto 18/19 | K11: Numero | L11: Variaz. % rispetto 18/19 | N11: Permanenza media | O11: Regione di provenienza
A13: Piemont | B13: 3865 | C13: -87.5 | D13: 11796 | E13: -88.2 | F13: 2.8 | G13: 3.1 | I13: 30973 | J13: -18.3 | K13: 99582 | L13: -16.4 | M13: 2.9 | N13: 3.2 | O13: Piemonte
A14: Aosta | B14: 335 | C14: -77 | D14: 1017 | E14: -73.6 | F14: 0.2 | G14: 3 | I14: 1457 | J14: -25.5 | K14: 3859 | L14: -26.5 | M14: 0.1 | N14: 2.6 | O14: Val d'Aosta
A15: Lombardei | B15: 18309 | C15: -91.7 | D15: 57548 | E15: -91.9 | F15: 13.5 | G15: 3.1 | I15: 221573 | J15: -15.2 | K15: 706930 | L15: -12.7 | M15: 20.3 | N15: 3.2 | O15: Lombardia
A16: Ligurien | B16: 1194 | C16: -94.2 | D16: 3403 | E16: -96.1 | F16: 0.8 | G16: 2.9 | I16: 20649 | J16: -14.9 | K16: 87071 | L16: -13.7 | M16: 2.5 | N16: 4.2 | O16: Liguria
A17: Nord-Westen | B17: =SUM(B13:B16) -> 23703 | C17: =(B17-B56)/B56*100 -> -91.36980615 | D17: =SUM(D13:D16) -> 73764 | E17: =(D17-D56)/D56*100 -> -91.78063875 | F17: =SUM(F13:F16) -> 17.3 | G17: =D17/B17 -> 3.112011138 | I17: =SUM(I13:I16) -> 274652 | J17: =(I17-I56)/I56*100 -> -15.60076209 | K17: =SUM(K13:K16) -> 897442 | L17: =(K17-K56)/K56*100 -> -13.2899578 | M17: =SUM(M13:M16) -> 25.8 | N17: =K17/I17 -> 3.267560404 | O17: Nord-Ovest
A19: Südtirol | B19: 58717 | C19: -17.5 | D19: 156278 | E19: -15.6 | F19: 36.6 | G19: 2.7 | I19: 71173 | J19: -21.4 | K19: 185076 | L19: -16.5 | M19: 5.3 | N19: 2.6 | O19: Alto Adige
A20: Trentino | B20: 3941 | C20: -85.5 | D20: 14525 | E20: -77.9 | F20: 3.4 | G20: 3.7 | I20: 27215 | J20: -22.1 | K20: 65787 | L20: -22.3 | M20: 1.9 | N20: 2.4 | O20: Trentino
A21: Venetien | B21: 19998 | C21: -90.5 | D21: 55785 | E21: -90.7 | F21: 13.1 | G21: 2.8 | I21: 210555 | J21: -12.6 | K21: 598267 | L21: -10.5 | M21: 17.1 | N21: 2.8 | O21: Veneto
A22: Friaul-Julisch Venetien | B22: 3532 | C22: -91.8 | D22: 9976 | E22: -93.1 | F22: 2.3 | G22: 2.8 | I22: 43098 | J22: -12.9 | K22: 143588 | L22: -10.5 | M22: 4.1 | N22: 3.3 | O22: Friuli Venezia Giulia
A23: Emilia Romagna | B23: 6892 | C23: -95.1 | D23: 19659 | E23: -95.5 | F23: 4.6 | G23: 2.9 | I23: 139752 | J23: -9.6 | K23: 441265 | L23: -9.1 | M23: 12.6 | N23: 3.2 | O23: Emilia Romagna
A24: Nord-Osten | B24: =SUM(B19:B23) -> 93080 | C24: =(B24-B63)/B63*100 -> -81.07333777 | D24: =SUM(D19:D23) -> 256223 | E24: =(D24-D63)/D63*100 -> -82.13207548 | F24: =SUM(F19:F23) -> 60 | G24: =D24/B24 -> 2.752718092 | I24: =SUM(I19:I23) -> 491793 | J24: =(I24-I63)/I63*100 -> -13.80264064 | K24: =SUM(K19:K23) -> 1433983 | L24: =(K24-K63)/K63*100 -> -11.49089006 | M24: =SUM(M19:M23) -> 41 | N24: =K24/I24 -> 2.915826374 | O24: Nord-Est
A26: Toskana | B26: 2444 | C26: -96.4 | D26: 8431 | E26: -96.8 | F26: 2 | G26: 3.4 | I26: 68035 | J26: -13.9 | K26: 261743 | L26: -14.1 | M26: 7.5 | N26: 3.8 | O26: Toscana
A27: Umbrien | B27: 547 | C27: -95.9 | D27: 1543 | E27: -97.2 | F27: 0.4 | G27: 2.8 | I27: 13477 | J27: -12.1 | K27: 55802 | L27: -10.6 | M27: 1.6 | N27: 4.1 | O27: Umbria
A28: Marken | B28: 1319 | C28: -95.3 | D28: 4551 | E28: -95.6 | F28: 1.1 | G28: 3.5 | I28: 27898 | J28: -11.4 | K28: 103723 | L28: -10.7 | M28: 3 | N28: 3.7 | O28: Marche
A29: Latium | B29: 3538 | C29: -95.6 | D29: 15786 | E29: -96 | F29: 3.7 | G29: 4.5 | I29: 80075 | J29: -12.8 | K29: 391174 | L29: -13.5 | M29: 11.2 | N29: 4.9 | O29: Lazio
A30: Mittelitalien | B30: =SUM(B26:B29) -> 7848 | C30: =(B30-B69)/B69*100 -> -95.85824735 | D30: =SUM(D26:D29) -> 30311 | E30: =(D30-D69)/D69*100 -> -96.26914906 | F30: =SUM(F26:F29) -> 7.2 | G30: =D30/B30 -> 3.8622579 | I30: =SUM(I26:I29) -> 189485 | J30: =(I30-I69)/I69*100 -> -12.93890078 | K30: =SUM(K26:K29) -> 812442 | L30: =(K30-K69)/K69*100 -> -13.14812162 | M30: =SUM(M26:M29) -> 23.3 | N30: =K30/I30 -> 4.287632266 | O30: Centro
A32: Abruzzen | B32: 1022 | C32: -90.5 | D32: 4073 | E32: -90.3 | F32: 1 | G32: 4 | I32: 10783 | J32: -16 | K32: 42072 | L32: -14.5 | M32: 1.2 | N32: 3.9 | O32: Abruzzi
A33: Molise | B33: 130 | C33: -91.6 | D33: 834 | E33: -86.5 | F33: 0.2 | G33: 6.4 | I33: 1556 | J33: -25.4 | K33: 6156 | L33: -25 | M33: 0.2 | N33: 4 | O33: Molise
A34: Kampanien | B34: 2213 | C34: -89.5 | D34: 11894 | E34: -86.3 | F34: 2.8 | G34: 5.4 | I34: 21041 | J34: -13.1 | K34: 86660 | L34: -13.8 | M34: 2.5 | N34: 4.1 | O34: Campania
A35: Apulien | B35: 2757 | C35: -84.8 | D35: 23841 | E35: -71.3 | F35: 5.6 | G35: 8.6 | I35: 18134 | J35: -15.7 | K35: 83061 | L35: -17.8 | M35: 2.4 | N35: 4.6 | O35: Puglia
A36: Basilicata | B36: 424 | C36: -82.9 | D36: 2380 | E36: -78.2 | F36: 0.6 | G36: 5.6 | I36: 2474 | J36: -11.3 | K36: 10901 | L36: -9.8 | M36: 0.3 | N36: 4.4 | O36: Basilicata
A37: Kalabrien | B37: 851 | C37: -86.5 | D37: 6598 | E37: -73.5 | F37: 1.5 | G37: 7.8 | I37: 6285 | J37: -17.1 | K37: 24860 | L37: -20.4 | M37: 0.7 | N37: 4 | O37: Calabria
A38: Süden | B38: =SUM(B32:B37) -> 7397 | C38: =(B38-B77)/B77*100 -> -87.72750651 | D38: =SUM(D32:D37) -> 49620 | E38: =(D38-D77)/D77*100 -> -80.4422372 | F38: =SUM(F34:F37) -> 10.5 | G38: =D38/B38 -> 6.708124916 | I38: =SUM(I32:I37) -> 60273 | J38: =(I38-I77)/I77*100 -> -15.15027803 | K38: =SUM(K32:K37) -> 253710 | L38: =(K38-K77)/K77*100 -> -16.07732358 | M38: =SUM(M34:M37) -> 5.9 | N38: =K38/I38 -> 4.209347469 | O38: Sud
A40: Sizilien | B40: 1551 | C40: -89 | D40: 14084 | E40: -79 | F40: 3.3 | G40: 9.1 | I40: 14045 | J40: -23.2 | K40: 67072 | L40: -15.1 | M40: 1.9 | N40: 4.8 | O40: Sicilia
A41: Sardinien | B41: 422 | C41: -92.8 | D41: 2737 | E41: -89.4 | F41: 0.6 | G41: 6.5 | I41: 5824 | J41: -15.8 | K41: 25702 | L41: -15.6 | M41: 0.7 | N41: 4.4 | O41: Sardegna
A42: Inseln | B42: =SUM(B40:B41) -> 1973 | C42: =(B42-B81)/B81*100 -> -90.06995823 | D42: =SUM(D40:D41) -> 16821 | E42: =(D42-D81)/D81*100 -> -81.86884256 | F42: =SUM(F38:F41) -> 14.4 | G42: =D42/B42 -> 8.52559554 | I42: =SUM(I40:I41) -> 19869 | J42: =(I42-I81)/I81*100 -> -21.19854049 | K42: =SUM(K40:K41) -> 92774 | L42: =(K42-K81)/K81*100 -> -15.22921026 | M42: =SUM(M38:M41) -> 8.5 | N42: =K42/I42 -> 4.669283809 | O42: Isole
A44: Insgesamt | B44: 134001 | C44: -87.1 | D44: 426739 | E44: -87.8 | F44: 100 | G44: 3.2 | I44: 1036072 | J44: -14.4 | K44: 3490351 | L44: -12.8 | M44: 100 | N44: 3.4 | O44: TOTALE
B47: Winterhalbjahr 2019/20 / Stagione invernale 2019/20 | I47: Winterhalbjahr 2018/19 / Stagione invernale 2018/19
B48: Ankünfte / Arrivi | D48: Übernachtungen / Presenze | G48: Mittlere | I48: Ankünfte / Arrivi | K48: Übernachtungen / Presenze | N48: Mittlere
B49: Anzahl | C49: % Veränd. geg. 18/19 | D49: Anzahl | E49: % Veränd. geg. 18/19 | F49: % | G49: Aufenthaltsdauer | I49: Anzahl | J49: % Veränd. geg. 16/17 | K49: Anzahl | L49: % Veränd. geg. 16/17 | M49: % | N49: Aufenthaltsdauer
A50: Herkunftsgebiet | B50: Numero | C50: Variaz. % rispetto 18/19 | D50: Numero | E50: Variaz. % rispetto 18/19 | G50: Permanenza media | I50: Numero | J50: Variaz. % rispetto 16/17 | K50: Numero | L50: Variaz. % rispetto 16/17 | N50: Permanenza media | O50: Regione di provenienza
A52: Piemont | B52: 30973 | C52: -18.3 | D52: 99582 | E52: -16.4 | F52: 2.9 | G52: 3.2 | I52: 37898 | J52: -0.6 | K52: 119185 | L52: 0.8 | M52: 3 | N52: 3.1 | O52: Piemonte
A53: Aosta | B53: 1457 | C53: -25.5 | D53: 3859 | E53: -26.5 | F53: 0.1 | G53: 2.6 | I53: 1957 | J53: 3.5 | K53: 5247 | L53: -1.2 | M53: 0.1 | N53: 2.7 | O53: Val d'Aosta
A54: Lombardei | B54: 221573 | C54: -15.2 | D54: 706930 | E54: -12.7 | F54: 20.3 | G54: 3.2 | I54: 261295 | J54: -3.9 | K54: 809659 | L54: -6.3 | M54: 20.2 | N54: 3.1 | O54: Lombardia
A55: Ligurien | B55: 20649 | C55: -14.9 | D55: 87071 | E55: -13.7 | F55: 2.5 | G55: 4.2 | I55: 24270 | J55: -8.1 | K55: 100901 | L55: -8.7 | M55: 2.5 | N55: 4.2 | O55: Liguria
A56: Nord-Westen | B56: 274652 | C56: -15.60076209 | D56: 897442 | E56: -13.2899578 | F56: 25.8 | G56: 3.267560404 | I56: 325420 | J56: -3.844221848 | K56: 1034992 | L56: -5.790085946 | M56: 25.8 | N56: 3.18048061 | O56: Nord-Ovest
A58: Südtirol | B58: 71173 | C58: -21.4 | D58: 185076 | E58: -16.5 | F58: 5.3 | G58: 2.6 | I58: 90531 | J58: 5.8 | K58: 221550 | L58: 4.4 | M58: 5.5 | N58: 2.4 | O58: Alto Adige
A59: Trentino | B59: 27215 | C59: -22.1 | D59: 65787 | E59: -22.3 | F59: 1.9 | G59: 2.4 | I59: 34951 | J59: -0.6 | K59: 84616 | L59: 1.9 | M59: 2.1 | N59: 2.4 | O59: Trentino
A60: Venetien | B60: 210555 | C60: -12.6 | D60: 598267 | E60: -10.5 | F60: 17.1 | G60: 2.8 | I60: 240941 | J60: -3.9 | K60: 668261 | L60: -6.2 | M60: 16.7 | N60: 2.8 | O60: Veneto
A61: Friaul-Julisch Venetien | B61: 43098 | C61: -12.9 | D61: 143588 | E61: -10.5 | F61: 4.1 | G61: 3.3 | I61: 49463 | J61: -7.2 | K61: 160391 | L61: -7.2 | M61: 4 | N61: 3.2 | O61: Friuli Venezia Giulia
A62: Emilia Romagna | B62: 139752 | C62: -9.6 | D62: 441265 | E62: -9.1 | F62: 12.6 | G62: 3.2 | I62: 154657 | J62: -5.1 | K62: 485335 | L62: -6.8 | M62: 12.1 | N62: 3.1 | O62: Emilia Romagna
A63: Nord-Osten | B63: 491793 | C63: -13.80264064 | D63: 1433983 | E63: -11.49089006 | F63: 41 | G63: 2.915826374 | I63: 570543 | J63: -2.928761376 | K63: 1620153 | L63: -4.794048427 | M63: 40.4 | N63: 2.839668526 | O63: Nord-Est
A65: Toskana | B65: 68035 | C65: -13.9 | D65: 261743 | E65: -14.1 | F65: 7.5 | G65: 3.8 | I65: 79030 | J65: -7.1 | K65: 304658 | L65: -8.3 | M65: 7.6 | N65: 3.9 | O65: Toscana
A66: Umbrien | B66: 13477 | C66: -12.1 | D66: 55802 | E66: -10.6 | F66: 1.6 | G66: 4.1 | I66: 15328 | J66: -4.2 | K66: 62442 | L66: -6.2 | M66: 1.6 | N66: 4.1 | O66: Umbria
A67: Marken | B67: 27898 | C67: -11.4 | D67: 103723 | E67: -10.7 | F67: 3 | G67: 3.7 | I67: 31493 | J67: -3.9 | K67: 116096 | L67: -5.5 | M67: 2.9 | N67: 3.7 | O67: Marche
A68: Latium | B68: 80075 | C68: -12.8 | D68: 391174 | E68: -13.5 | F68: 11.2 | G68: 4.9 | I68: 91795 | J68: -5.6 | K68: 452238 | L68: -6.1 | M68: 11.3 | N68: 4.9 | O68: Lazio
A69: Mittelitalien | B69: 189485 | C69: -12.93890078 | D69: 812442 | E69: -13.14812162 | F69: 23.3 | G69: 4.287632266 | I69: 217646 | J69: -5.808679696 | K69: 935434 | L69: -6.754705207 | M69: 23.4 | N69: 4.297960909 | O69: Centro
A71: Abruzzen | B71: 10783 | C71: -16 | D71: 42072 | E71: -14.5 | F71: 1.2 | G71: 3.9 | I71: 12835 | J71: -4.4 | K71: 49201 | L71: -3.3 | M71: 1.2 | N71: 3.8 | O71: Abruzzi
A72: Molise | B72: 1556 | C72: -25.4 | D72: 6156 | E72: -25 | F72: 0.2 | G72: 4 | I72: 2085 | J72: 8.5 | K72: 8209 | L72: 10.9 | M72: 0.2 | N72: 3.9 | O72: Molise
A73: Kampanien | B73: 21041 | C73: -13.1 | D73: 86660 | E73: -13.8 | F73: 2.5 | G73: 4.1 | I73: 24226 | J73: -4.1 | K73: 100586 | L73: -4.4 | M73: 2.5 | N73: 4.2 | O73: Campania
A74: Apulien | B74: 18134 | C74: -15.7 | D74: 83061 | E74: -17.8 | F74: 2.4 | G74: 4.6 | I74: 21523 | J74: -0.8 | K74: 101008 | L74: -4.7 | M74: 2.5 | N74: 4.7 | O74: Puglia
A75: Basilicata | B75: 2474 | C75: -11.3 | D75: 10901 | E75: -9.8 | F75: 0.3 | G75: 4.4 | I75: 2789 | J75: -3.2 | K75: 12087 | L75: -1 | M75: 0.3 | N75: 4.3 | O75: Basilicata
A76: Kalabrien | B76: 6285 | C76: -17.1 | D76: 24860 | E76: -20.4 | F76: 0.7 | G76: 4 | I76: 7577 | J76: 3.8 | K76: 31223 | L76: -3.8 | M76: 0.8 | N76: 4.1 | O76: Calabria
A77: Süden | B77: 60273 | C77: -15.15027803 | D77: 253710 | E77: -16.07732358 | F77: 5.9 | G77: 4.209347469 | I77: 71035 | J77: -2.01122867 | K77: 302314 | L77: -3.743114592 | M77: 6.1 | N77: 4.25584571 | O77: Sud
A79: Sizilien | B79: 14045 | C79: -23.2 | D79: 67072 | E79: -15.1 | F79: 1.9 | G79: 4.8 | I79: 18295 | J79: 4.5 | K79: 78973 | L79: -0.1 | M79: 2 | N79: 4.3 | O79: Sicilia
A80: Sardinien | B80: 5824 | C80: -15.8 | D80: 25702 | E80: -15.6 | F80: 0.7 | G80: 4.4 | I80: 6919 | J80: 0.5 | K80: 30468 | L80: 3.9 | M80: 0.8 | N80: 4.4 | O80: Sardegna
A81: Inseln | B81: 19869 | C81: -21.19854049 | D81: 92774 | E81: -15.22921026 | F81: 8.5 | G81: 4.669283809 | I81: 25214 | J81: 3.336065574 | K81: 109441 | L81: 0.9733729448 | M81: 8.9 | N81: 4.340485445 | O81: Isole
A83: Insgesamt | B83: 1036072 | C83: -14.4 | D83: 3490351 | E83: -12.8 | F83: 100 | G83: 3.4 | H83: | | I83: 1209858 | J83: -3.5 | K83: 4002334 | L83: -5.3 | M83: 100 | N83: 3.3 | O83: TOTALE

Sheet tab4a
A1: Tab. 4 a | F1: INDEX / INDICE
A4: Beherbergungsbetriebe nach Betriebskategorie und -art - Winterhalbjahr 2020/21
A6: Esercizi ricettivi per categoria e tipo d'esercizio - Stagione invernale 2020/21
A8: KATEGORIEN | B8: Betriebe | C8: Zimmer | D8: Betten | E8: Bäder | F8: CATEGORIA
B9: Esercizi | C9: Camere | D9: Letti | E9: Bagni
A11: Nach Betriebsart / Per tipo d’esercizio
A12: Gasthof « | B12: 87 | C12: 876 | D12: 1815 | E12: 1019 | F12: Albergo «
A13: Gasthof «« | B13: 224 | C13: 3104 | D13: 6065 | E13: 3100 | F13: Albergo ««
A14: Gasthof ««« | B14: 166 | C14: 2993 | D14: 5942 | E14: 2980 | F14: Albergo «««
A15: Gasthof «««« | B15: 23 | C15: 692 | D15: 1389 | E15: 693 | F15: Albergo ««««
A16: Gasthof ««««« | B16: 2 | C16: 119 | D16: 250 | E16: 119 | F16: Albergo «««««
A17: Zusammen | B17: 502 | C17: 7784 | D17: 15461 | E17: 7911 | F17: Totale
A19: Hotel «« | B19: 38 | C19: 835 | D19: 1765 | E19: 833 | F19: Hotel ««
A20: Hotel ««« | B20: 988 | C20: 23556 | D20: 46715 | E20: 24679 | F20: Hotel «««
A21: Hotel «««« | B21: 480 | C21: 17564 | D21: 34489 | E21: 17526 | F21: Hotel ««««
A22: Hotel ««««« | B22: 45 | C22: 2428 | D22: 4923 | E22: 5196 | F22: Hotel «««««
A23: Zusammen | B23: 1551 | C23: 44383 | D23: 87892 | E23: 48234 | F23: Totale
A25: Garni « | B25: 71 | C25: 675 | D25: 1300 | E25: 622 | F25: Garni «
A26: Garni «« | B26: 321 | C26: 3448 | D26: 6841 | E26: 3421 | F26: Garni ««
A27: Garni ««« | B27: 221 | C27: 2838 | D27: 5670 | E27: 2847 | F27: Garni «««
A28: Garni «««« | B28: 13 | C28: 214 | D28: 436 | E28: 214 | F28: Garni ««««
A29: Zusammen | B29: =SUM(B25:B28) -> 626 | C29: =SUM(C25:C28) -> 7175 | D29: =SUM(D25:D28) -> 14247 | E29: =SUM(E25:E28) -> 7104 | F29: Totale
A31: Pension « | B31: 73 | C31: 1046 | D31: 2387 | E31: 1031 | F31: Pensione «
A32: Pension «« | B32: 207 | C32: 2738 | D32: 5771 | E32: 2740 | F32: Pensione ««
A33: Pension ««« | B33: 133 | C33: 1942 | D33: 3772 | E33: 1946 | F33: Pensione «««
A34: Pension «««« | B34: 2 | C34: 39 | D34: 74 | E34: 39 | F34: Pensione ««««
A35: Zusammen | B35: 415 | C35: 5765 | D35: 12004 | E35: 5756 | F35: Totale
A37: Residence «« | B37: 336 | C37: 2817 | D37: 7373 | E37: 2871 | F37: Residence ««
A38: Residence ««« | B38: 435 | C38: 4481 | D38: 11417 | E38: 4637 | F38: Residence «««
A39: Residence «««« | B39: 82 | C39: 1264 | D39: 3258 | E39: 1356 | F39: Residence ««««
A40: Residence ««««« | B40: 1 | C40: 35 | D40: 85 | E40: 34 | F40: Residence «««««
A41: Zusammen | B41: 854 | C41: 8597 | D41: 22133 | E41: 8898 | F41: Totale
A43: Hoteldorf ««««« | B43: 2 | C43: 110 | D43: 238 | E43: 110 | F43: Villaggio albergo «««««
A44: Motel ««« | B44: 2 | C44: 37 | D44: 74 | E44: 37 | F44: Motel «««
A46: Gastgewerbliche Betriebe | B46: 3952 | C46: 73851 | D46: 152049 | E46: 78050 | F46: Esercizi alberghieri
A48: Ferienwohnung ï | B48: 120 | C48: 189 | D48: 654 | E48: 221 | F48: Appartamento ï
A49: Ferienwohnung ïï | B49: 786 | C49: 1576 | D49: 5125 | E49: 1813 | F49: Appartamento ïï
A50: Ferienwohnung ïïï | B50: 1162 | C50: 2861 | D50: 9294 | E50: 3527 | F50: Appartamento ïïï
A51: Ferienwohnung ïïïï | B51: 207 | C51: 579 | D51: 1867 | E51: 765 | F51: Appartamento ïïïï
A52: Ferienwohnung ïïïïï | B52: 48 | C52: 129 | D52: 419 | E52: 175 | F52: Appartamento ïïïïï
A53: Zusammen | B53: 2323 | C53: 5334 | D53: 17359 | E53: 6501 | F53: Totale
A55: Zimmervermietung ï | B55: 87 | C55: 302 | D55: 622 | E55: 316 | F55: Affittacamere ï
A56: Zimmervermietung ïï | B56: 231 | C56: 827 | D56: 1791 | E56: 902 | F56: Affittacamere ïï
A57: Zimmervermietung ïïï | B57: 219 | C57: 914 | D57: 2010 | E57: 960 | F57: Affittacamere ïïï
A58: Zimmervermietung ïïïï | B58: 32 | C58: 129 | D58: 322 | E58: 145 | F58: Affittacamere ïïïï
A59: Zimmervermietung ïïïïï | B59: 8 | C59: 40 | D59: 97 | E59: 46 | F59: Affittacamere ïïïïï
A60: Zusammen | B60: 577 | C60: 2212 | D60: 4842 | E60: 2369 | F60: Totale
A62: Nicht klass. Privatquatier | B62: 79 | C62: 176 | D62: 492 | E62: 185 | F62: Alloggio privato non class.
A63: Privatquartier ohne Liz. | B63: 20 | C63: 39 | D63: 84 | E63: 41 | F63: Alloggio privato senza licenza
A64: Sonstiges | B64: 211 | C64: 666 | D64: 1714 | E64: 822 | F64: Altro
A65: Zusammen | B65: =SUM(B62:B64) -> 310 | C65: =SUM(C62:C64) -> 881 | D65: =SUM(D62:D64) -> 2290 | E65: =SUM(E62:E64) -> 1048 | F65: Totale
A67: Urlaub auf dem Bauernhof | B67: 22 | C67: 53 | D67: 146 | E67: 55 | F67: Esercizio agrituristico
A68: Urlaub auf dem Bauernhof { | B68: 327 | C68: 970 | D68: 2514 | E68: 1098 | F68: Esercizio agrituristico {
A69: Urlaub auf dem Bauernhof {{ | B69: 1055 | C69: 3039 | D69: 8630 | E69: 3245 | F69: Esercizio agrituristico {{
A70: Urlaub auf dem Bauernhof {{{ | B70: 1158 | C70: 3783 | D70: 10840 | E70: 4166 | F70: Esercizio agrituristico {{{
A71: Urlaub auf dem Bauernhof {{{{ | B71: 324 | C71: 1216 | D71: 3600 | E71: 1333 | F71: Esercizio agrituristico {{{{
A72: Urlaub auf dem Bauernhof {{{{{ | B72: 36 | C72: 142 | D72: 447 | E72: 162 | F72: Esercizio agrituristico {{{{{
A73: Zusammen | B73: 2922 | C73: 9203 | D73: 26177 | E73: 10059 | F73: Totale
A75: Zimmer- und Wohnungsvermietung ï | B75: 37 | C75: 108 | D75: 281 | E75: 113 | F75: Affittacamere e appartamenti ï
A76: Zimmer- und Wohnungsvermietung ïï | B76: 118 | C76: 389 | D76: 1019 | E76: 406 | F76: Affittacamere e appartamenti ïï
A77: Zimmer- und Wohnungsvermietung ïïï | B77: 176 | C77: 664 | D77: 1671 | E77: 722 | F77: Affittacamere e appartamenti ïïï
A78: Zimmer- und Wohnungsvermietung ïïïï | B78: 35 | C78: 153 | D78: 358 | E78: 164 | F78: Affittacamere e appartamenti ïïïï
A79: Zimmer- und Wohnungsvermietung ïïïïï | B79: 8 | C79: 35 | D79: 78 | E79: 36 | F79: Affittacamere e appartamenti ïïïïï
A80: Zusammen | B80: 374 | C80: 1349 | D80: 3407 | E80: 1441 | F80: Totale
A82: Berggasthaus | B82: 26 | C82: 198 | D82: 465 | E82: 218 | F82: Rifugio albergo
A83: Campingplatz (a) | B83: 55 | C83: 4623 | D83: 14664 | E83: 67 | F83: Campeggio (a)
A84: Ferienheim | B84: 34 | C84: 1093 | D84: 2495 | E84: 1110 | F84: Casa per ferie
A85: Jugendferienheim | B85: 12 | C85: 227 | D85: 603 | E85: 269 | F85: Albergo per gioventù
A86: Jugendherberge | B86: 6 | C86: 168 | D86: 428 | E86: 197 | F86: Ostello
A87: Schutzhütte | B87: 92 | C87: 840 | D87: 4216 | E87: 144 | F87: Rifugio alpino
A88: Zusammen | B88: =SUM(B82:B87) -> 225 | C88: =SUM(C82:C87) -> 7149 | D88: =SUM(D82:D87) -> 22871 | E88: =SUM(E82:E87) -> 2005 | F88: Totale
A90: Nicht-gastgewerbliche Betriebe | B90: 6731 | C90: 26128 | D90: 76946 | E90: 23423 | F90: Esercizi extralberghieri
A92: Nach Betriebskategorie / Per categoria d'esercizio
A94: « | B94: 231 | C94: 2597 | D94: 5502 | E94: 2672 | F94: «
A95: «« | B95: 790 | C95: 10125 | D95: 20442 | E95: 10094 | F95: ««
A96: ««« | B96: 1510 | C96: 31366 | D96: 62173 | E96: 32489 | F96: «««
A97: «««« | B97: 519 | C97: 18568 | D97: 36506 | E97: 18531 | F97: ««««
A98: ««««« | B98: 48 | C98: 2598 | D98: 5293 | E98: 5366 | F98: «««««
A99: Residences | B99: 854 | C99: 8597 | D99: 22133 | E99: 8898 | F99: Residence
A100: Gastgewerbliche Betriebe | B100: 3952 | C100: 73851 | D100: 152049 | E100: 78050 | F100: Esercizi alberghieri
A102: Nicht-gastgewerbliche Betriebe | B102: 6731 | C102: 26128 | D102: 76946 | E102: 23423 | F102: Esercizi extralberghieri
A104: Insgesamt | B104: 10683 | C104: 99979 | D104: 228995 | E104: 101473 | F104: Totale generale
A106: (a) Bei den Campingplätzen gilt die Zahl der Abstellplätze als Zimmeranzahl, die Beherbergungskapazität als Bettenanzahl, während die Anzahl der Bäder nicht verfügbar ist.
A107: Per i campeggi le camere corrispondono alle piazzuole ed i posti letto alla relativa capacità di ospitare persone, mentre il numero di bagni non è disponibile.

Sheet tab5a
A1: Tab. 5 a | H1: INDEX / INDICE
A3: Index der Bettenauslastung in den Beherbergungsbetrieben nach Betriebskategorie und -art - Winterhalbjahr 2020/21
A4: Indice di utilizzazione dei posti letto negli esercizi ricettivi per categoria e tipo d'esercizio - Stagione invernale 2020/21
D6: Index der Bettenauslastung (%) Indice di utilizzazione dei posti letto (%)
B8: Übernachtungen | C8: Betten
A9: BETRIEBSKATEGORIEN | D9: 2020/21 | E9: 2019/20 | F9: CATEGORIA E TIPO
A10: UND -ARTEN | B10: Presenze | C10: Posti letto | D10: Brutto | E10: Brutto | F10: D’ESERCIZIO
D11: Lordo | E11: Lordo
A13: Gastgewerbliche
A14: Beherbergungsbetriebe | F14: Esercizi alberghieri
A15: 5 Sterne | B15: 68435 | C15: 5293 | D15: 7.143 | E15: 44.503 | F15: 5 Stelle
A16: 4 Sterne | B16: 105507 | C16: 36506 | D16: 1.597 | E16: 36.863 | F16: 4 Stelle
A17: 3 Sterne | B17: 142910 | C17: 62173 | D17: 1.27 | E17: 27 | F17: 3 Stelle
A18: 2 Sterne | B18: 66237 | C18: 20442 | D18: 1.79 | E18: 18.878 | F18: 2 Stelle
A19: 1 Stern | B19: 17695 | C19: 5502 | D19: 1.777 | E19: 14.225 | F19: 1 Stella
A20: Residences | B20: 85232 | C20: 22133 | D20: 2.128 | E20: 26.38 | F20: Residence
A21: Zusammen | B21: 486016 | C21: 152049 | D21: 1.766 | E21: 28.165 | F21: Totale
A23: Nicht-gastgewerbliche | F23: Esercizi
A24: Beherbergungsbetriebe | F24: extralberghieri
A25: Campingplätze | B25: 5384 | C25: 14664 | D25: 0.203 | E25: 5.931 | F25: Campeggi
A26: Privatquartiere | B26: 70931 | C26: 26184 | D26: 1.497 | E26: 20.836 | F26: Alloggi privati
A27: Urlaub auf dem Bauernhof | B27: 52320 | C27: 26122 | D27: 1.107 | E27: 15.106 | F27: Esercizi agrituristici
A28: Andere Betriebe | B28: 9515 | C28: 9976 | D28: 0.527 | E28: 6.478 | F28: Altri esercizi
A29: Zusammen | B29: 138150 | C29: 76946 | D29: 0.992 | E29: 14.125 | F29: Totale
A31: Insgesamt | B31: 624166 | C31: 228995 | D31: 1.506 | E31: 23.489 | F31: Totale generale

Sheet tab6a
A1: Tab. 6 a | E1: INDEX / INDICE
A3: Index der Brutto-Auslastung der Betten in den gastgewerblichen Beherbergungsbetrieben - Winterhalbjahre 1992/93-2020/21
A5: Indice di utilizzazione lordo dei posti letto negli esercizi alberghieri - Stagioni invernali 1992/93-2020/21
A7: WINTERHALBJAHRE | B7: Übernachtungen | C7: Betten | D7: Auslastung der Betten in Tagen | E7: Auslastung der Betten in %
A8: STAGIONI INVERNALI | B8: Presenze | C8: Posti letto | D8: Utilizzo dei posti letto in giorni | E8: Utilizzo dei posti letto in %
A9: 1991/92 | B9: 6577672 | C9: 150534 | D9: 43.69559036 | E9: 24.00856613
A10: 1992/93 | B10: 6631220 | C10: 150361 | D10: 44.10199453 | E10: 24.36574284
A11: 1993/94 | B11: 7235590 | C11: 147842 | D11: 48.94136984 | E11: 27.03943085
A12: 1994/95 | B12: 7296823 | C12: 146915 | D12: 49.6669707 | E12: 27.4403153
A13: 1995/96 | B13: 7762723 | C13: 146004 | D13: 53.16787896 | E13: 29.21312031
A15: 1996/97 | B15: 7200010 | C15: 146135 | D15: 49.2695795 | E15: 27.22076215
A16: 1997/98 | B16: 7091473 | C16: 145152 | D16: 48.85549631 | E16: 26.99198691
A17: 1998/99 | B17: 7164149 | C17: 145170 | D17: 49.35006544 | E17: 27.26522953
A18: 1999/2000 | B18: 7162434 | C18: 146178 | D18: 48.9980298 | E18: 26.9219944
A19: 2000/01 | B19: 7717133 | C19: 146446 | D19: 52.69609959 | E19: 29.11386717
A21: 2001/02 | B21: 7781540 | C21: 146864 | D21: 53 | E21: 29.27329618
A22: 2002/03 | B22: 8084656 | C22: 146801 | D22: 55.0722134 | E22: 30.42663724
A23: 2003/04 | B23: 8491099 | C23: 147297 | D23: 57.64610956 | E23: 31.67368657
A24: 2004/05 | B24: 8523470 | C24: 148336 | D24: 57.5 | E24: 31.74616713
A25: 2005/06 | B25: 8571473 | C25: 149011 | D25: 57.52241781 | E25: 31.78034133
A27: 2006/07 | B27: 8842118 | C27: 149624 | D27: 59.09558627 | E27: 32.64949518
A28: 2007/08 | B28: 9347238 | C28: 149922 | D28: 62.34734062 | E28: 34.25678056
A29: 2008/09 | B29: 9204037 | C29: 152458 | D29: 60.37096774 | E29: 33.35412582
A30: 2009/10 | B30: 9392696 | C30: 151261 | D30: 62.09595335 | E30: 34.30715655
A31: 2010/11 | B31: 9222434 | C31: 151187 | D31: 61.00017859 | E31: 33.70175613
A33: 2011/12 | B33: 9153592 | C33: 151704 | D33: 60.33850129 | E33: 33.15302269
A34: 2012/13 | B34: 9006876 | C34: 151462 | D34: 59.5 | E34: 32.854
A35: 2013/14 | B35: 8976544 | C35: 150254 | D35: 59.5 | E35: 32.881
A36: 2014/15 | B36: 9032411 | C36: 148997 | D36: 60.387 | E36: 33.5
A37: 2015/16 | B37: 9577784 | C37: 149532 | D37: =B37/C37 -> 64.05173475 | E37: 35.2
A39: 2016/17 | B39: 9593098 | C39: 150862 | D39: =B39/C39 -> 63.58856438 | E39: 35.1
A40: 2017/18 | B40: 10125072 | C40: 151321 | D40: =B40/C40 -> 66.91121523 | E40: 37
A41: 2018/19 | B41: 10027860 | C41: 149625 | D41: =B41/C41 -> 67.01994987 | E41: 37
A42: 2019/20 | B42: 9717720 | C42: 151605 | D42: =B42/C42 -> 64.09894133 | E42: 28.2
A44: 2020/21 | B44: 486016 | C44: 152049 | D44: =B44/C44 -> 3.196443252 | E44: 1.766

Sheet tab7a
A1: Tab. 7 a | Q1: INDEX / INDICE
A3: Übernachtungen der Gäste in den Beherbergungsbetrieben nach Bezirksgemeinschaft - Winterhalbjahre 1991/92-2020/21
A5: Presenze dei clienti negli esercizi ricettivi per comunità comprensoriale - Stagioni invernali 1991/92-2020/21
B8: Winterhalbjahre / Stagioni invernali
A9: BEZIRKSGEMEINSCHAFTEN | C9: Λ | E9: Λ | G9: Λ | I9: Λ | W9: COMUNITÀ COMPRENSORIALE
B10: 1991/1992 | C10: Λ | D10: 1996/1997 | E10: Λ | F10: 2001/2002 | G10: Λ | H10: 2006/2007 | I10: Λ | J10: 2008/2009 | K10: 2009/2010 | L10: 2010/2011 | M10: 2011/2012 | N10: 2012/2013 | O10: 2013/2014 | P10: 2014/2015 | Q10: 2015/2016 | R10: 2016/2017 | S10: 2017/2018 | T10: 2018/2019 | U10: 2019/2020 | V10: 2020/2021
A12: Absolute Werte in Tausend / Valori assoluti in migliaia
A13: Vinschgau | B13: 680 | D13: 724 | F13: 765 | H13: 791 | J13: 847 | K13: 795 | L13: 794 | M13: 822 | N13: 793 | O13: 809 | P13: 839 | Q13: 875 | R13: 891 | S13: 898 | T13: 943 | U13: 659 | V13: 47 | W13: Val Venosta
A14: Burggrafenamt | B14: 956 | D14: 951 | F14: 1049 | H14: 1172 | J14: 1199 | K14: 1297 | L14: 1337 | M14: 1353 | N14: 1301 | O14: 1238 | P14: 1291 | Q14: 1425 | R14: 1503 | S14: 1549 | T14: 1542 | U14: 804 | V14: 104 | W14: Burgraviato
A15: Überetsch-Südt. Unterland | B15: 337 | D15: 359 | F15: 410 | H15: 407 | J15: 391 | K15: 395 | L15: 397 | M15: 431 | N15: 381 | O15: 361 | P15: 377 | Q15: 411 | R15: 464 | S15: 461 | T15: 471 | U15: 256 | V15: 92 | W15: Oltradige-Bassa Atesina
A16: Bozen | B16: 248 | D16: 249 | F16: 215 | H16: 243 | J16: 209 | K16: 219 | L16: 235 | M16: 233 | N16: 205 | O16: 215 | P16: 223 | Q16: 238 | R16: 251 | S16: 262 | T16: 285 | U16: 208 | V16: 73 | W16: Bolzano
A17: Salten-Schlern | B17: 1760 | D17: 1930 | F17: 1902 | H17: 2265 | J17: 2433 | K17: 2500 | L17: 2447 | M17: 2415 | N17: 2427 | O17: 2456 | P17: 2476 | Q17: 2599 | R17: 2502 | S17: 2727 | T17: 2645 | U17: 2266 | V17: 56 | W17: Salto-Sciliar
A18: Eisacktal | B18: 637 | D18: 734 | F18: 848 | H18: 908 | J18: 926 | K18: 945 | L18: 923 | M18: 937 | N18: 932 | O18: 949 | P18: 919 | Q18: 999 | R18: 1025 | S18: 1076 | T18: 1071 | U18: 884 | V18: 58 | W18: Valle Isarco
A19: Wipptal | B19: 356 | D19: 405 | F19: 433 | H19: 526 | J19: 582 | K19: 567 | L19: 545 | M19: 550 | N19: 567 | O19: 580 | P19: 573 | Q19: 592 | R19: 623 | S19: 664 | T19: 655 | U19: 521 | V19: 53 | W19: Alta Valle Isarco
A20: Pustertal | B20: 3130 | D20: 3550 | F20: 3717 | H20: 4240 | J20: 4420 | K20: 4515 | L20: 4382 | M20: 4293 | N20: 4262 | O20: 4284 | P20: 4304 | Q20: 4546 | R20: 4526 | S20: 4900 | T20: 4842 | U20: 4119 | V20: 140 | W20: Val Pusteria
A22: Südtirol insgesamt | B22: 8104 | D22: 8902 | F22: 9339 | H22: 10551 | J22: 11006 | K22: 11234 | L22: 11061 | M22: 11033 | N22: 10870 | O22: 10892 | P22: 11001 | Q22: 11685 | R22: 11786 | S22: 12537 | T22: 12454 | U22: 9718 | V22: 624 | W22: Totale provincia
B24: Prozentuelle Verteilung / Composizione percentuale
A25: Vinschgau | B25: 8.393 | D25: 8.131 | F25: 8.186 | H25: 7.499 | J25: 7.693 | K25: 7.081 | L25: 7.177 | M25: 7.45 | N25: 7.3 | O25: =O13*100/$O$22 -> 7.427469703 | P25: 7.622 | Q25: 7.486 | R25: 7.562 | S25: 7.163 | T25: 7.575 | U25: 6.785 | V25: 7.535 | W25: Val Venosta
A26: Burggrafenamt | B26: 11.8 | D26: 10.679 | F26: 11.234 | H26: 11.11 | J26: 10.891 | K26: 11.545 | L26: 12.091 | M26: 12.266 | N26: 11.972 | O26: =O14*100/$O$22 -> 11.36614029 | P26: 11.735 | Q26: 12.198 | R26: 12.75 | S26: 12.355 | T26: 12.379 | U26: 8.275 | V26: 16.64 | W26: Burgraviato
A27: Überetsch-Südtiroler Unterland | B27: 4.154 | D27: 4.036 | F27: 4.394 | H27: 3.853 | J27: 3.552 | K27: 3.516 | L27: 3.593 | M27: 3.909 | N27: 3.503 | O27: 3.314359163 | P27: 3.43 | Q27: 3.519 | R27: 3.941 | S27: 3.675 | T27: 3.784 | U27: 2.637 | V27: 14.752 | W27: Oltradige-Bassa Atesina
A28: Bozen | B28: 3.06 | D28: 2.803 | F28: 2.298 | H28: 2.304 | J28: 1.898 | K28: 1.949 | L28: 2.125 | M28: 2.107 | N28: 1.887 | O28: 1.973925817 | P28: 2.024 | Q28: 2.037 | R28: 2.133 | S28: 2.093 | T28: 2.286 | U28: 2.145 | V28: 11.728 | W28: Bolzano
A29: Salten-Schlern | B29: 21.713 | D29: 21.681 | F29: 20.365 | H29: 21.462 | J29: 22.102 | K29: 22.256 | L29: 22.123 | M29: 21.884 | N29: 22.33 | O29: 22.54865957 | P29: 22.507 | Q29: 22.243 | R29: 21.226 | S29: 21.751 | T29: 21.236 | U29: 23.314 | V29: 9.037 | W29: Salto-Sciliar
A30: Eisacktal | B30: 7.861 | D30: 8.249 | F30: 9.076 | H30: 8.602 | J30: 8.412 | K30: 8.41 | L30: 8.347 | M30: 8.492 | N30: 8.579 | O30: 8.712816746 | P30: 8.35 | Q30: 8.548 | R30: 8.699 | S30: 8.58 | T30: 8.601 | U30: 9.093 | V30: 9.277 | W30: Valle Isarco
A31: Wipptal | B31: 4.395 | D31: 4.547 | F31: 4.641 | H31: 4.982 | J31: 5.29 | K31: 5.049 | L31: 4.926 | M31: 4.985 | N31: 5.221 | O31: 5.325009181 | P31: 5.211 | Q31: 5.067 | R31: 5.285 | S31: 5.294 | T31: 5.26 | U31: 5.364 | V31: 8.527 | W31: Alta Valle Isarco
A32: Pustertal | B32: 38.624 | D32: 39.875 | F32: 39.806 | H32: 40.188 | J32: 40.162 | K32: 40.194 | L32: 39.619 | M32: 38.906 | N32: 39.208 | O32: 39.33161954 | P32: 39.121 | Q32: 38.903 | R32: 38.404 | S32: 39.089 | T32: 38.879 | U32: 42.388 | V32: 22.506 | W32: Val Pusteria
A34: Südtirol insgesamt | B34: 100 | D34: 100 | F34: 100 | H34: 100 | J34: 100 | K34: 100 | L34: 100 | M34: 100 | N34: 100 | O34: 100 | P34: 100 | Q34: 100 | R34: 100 | S34: 100 | T34: 100 | U34: 100 | V34: 100 | W34: Totale provincia

Sheet tab8a
A1: Tab. 8 a | Q1: INDEX / INDICE
A3: Übernachtungen der inländischen und ausländischen Gäste in den Beherbergungsbetrieben nach Bezirksgemeinschaft - Winterhalbjahre 1991/92-2020/21
A4: Prozentuelle Verteilung
A5: Presenze dall'Italia e dall'estero negli esercizi ricettivi per comunità comprensoriale - Stagioni invernali 1991/92-2020/21
A6: Composizione percentuale
B8: Winterhalbjahre / Stagioni invernali
A9: BEZIRKSGEMEINSCHAFTEN | C9: Λ | E9: Λ | G9: Λ | I9: Λ | W9: COMUNITÀ COMPRENSORIALE
B10: 1991/1992 | C10: Λ | D10: 1996/1997 | E10: Λ | F10: 2001/2002 | G10: Λ | H10: 2006/2007 | I10: Λ | J10: 2008/2009 | K10: 2009/2010 | L10: 2010/2011 | M10: 2011/2012 | N10: 2012/2013 | O10: 2013/2014 | P10: 2014/2015 | Q10: 2015/2016 | R10: 2016/2017 | S10: 2017/2018 | T10: 2018/2019 | U10: 2019/2020 | V10: 2020/2021
B12: Inland / Italia
A13: Vinschgau | B13: 5.415 | D13: 3.615 | F13: 3.907 | H13: 3.593 | J13: 3.239 | K13: 3.293 | L13: 3.238 | M13: 3.284 | N13: 3.416 | O13: 3.248 | P13: 3.252 | Q13: 3.215 | R13: 2.979 | S13: 2.916 | T13: 3.235 | U13: 2.848 | V13: 6.014 | W13: Val Venosta
A14: Burggrafenamt | B14: 4.792 | D14: 5.178 | F14: 6.808 | H14: 7.552 | J14: 7.948 | K14: 8.73 | L14: 8.878 | M14: 8.678 | N14: 8.512 | O14: 8.864 | P14: 9.187 | Q14: 9.339 | R14: 9.654 | S14: 9.509 | T14: 9.706 | U14: 9.678 | V14: 15.387 | W14: Burgraviato
A15: Überetsch-Südt. Unterland | B15: 3.229 | D15: 4.074 | F15: 4.433 | H15: 3.434 | J15: 3.249 | K15: 3.012 | L15: 2.966 | M15: 3.699 | N15: 3.469 | O15: 3.156 | P15: 3.507 | Q15: 3.637 | R15: 3.992 | S15: 3.819 | T15: 3.927 | U15: 3.811 | V15: 15.149 | W15: Oltradige-Bassa Atesina
A16: Bozen | B16: 4.654 | D16: 5.448 | F16: 3.615 | H16: 3.519 | J16: 2.939 | K16: 2.98 | L16: 3.311 | M16: 3.453 | N16: 3.135 | O16: 3.562 | P16: 3.389 | Q16: 3.471 | R16: 3.489 | S16: 3.51 | T16: 4.183 | U16: 3.974 | V16: 14.105 | W16: Bolzano
A17: Salten-Schlern | B17: 26.409 | D17: 22.857 | F17: 22.533 | H17: 23.812 | J17: 23.812 | K17: 23.346 | L17: 23.279 | M17: 22.401 | N17: 22.241 | O17: 21.712 | P17: 21.768 | Q17: 21.613 | R17: 20.576 | S17: 21.1 | T17: 20.368 | U17: 20.764 | V17: 9.22 | W17: Salto-Sciliar
A18: Eisacktal | B18: 5.744 | D18: 5.786 | F18: 6.534 | H18: 6.85 | J18: 7.009 | K18: 7.09 | L18: 6.977 | M18: 7.279 | N18: 7.328 | O18: 7.129 | P18: 7.137 | Q18: 7.256 | R18: 7.457 | S18: 7.358 | T18: 7.053 | U18: 7.35 | V18: 10.039 | W18: Valle Isarco
A19: Wipptal | B19: 3.294 | D19: 3.621 | F19: 3.045 | H19: 4.323 | J19: 4.671 | K19: 4.439 | L19: 4.454 | M19: 4.639 | N19: 4.86 | O19: 5.286 | P19: 5.315 | Q19: 5.093 | R19: 5.711 | S19: 5.777 | T19: 5.659 | U19: 5.356 | V19: 8.896 | W19: Alta Valle Isarco
A20: Pustertal | B20: 46.463 | D20: 49.421 | F20: 49.126 | H20: 46.917 | J20: 47.132 | K20: 47.11 | L20: 46.897 | M20: 46.565 | N20: 47.04 | O20: 47.043 | P20: 46.444 | Q20: 46.375 | R20: 46.142 | S20: 46.011 | T20: 45.869 | U20: 46.218 | V20: 21.191 | W20: Val Pusteria
A22: Südtirol insgesamt | B22: 100 | D22: 100 | F22: 100 | H22: 100 | J22: 100 | K22: 100 | L22: 100 | M22: 100 | N22: 100 | O22: 100 | P22: 100 | Q22: 100 | R22: 100 | S22: 100 | T22: 100 | U22: 100 | V22: 100 | W22: Totale provincia
B24: Ausland / Estero
A25: Vinschgau | B25: 10.603 | D25: 10.526 | F25: 10.599 | H25: 10.104 | J25: 10.543 | K25: 9.626 | L25: 9.715 | M25: 9.758 | N25: 9.337 | O25: 9.488 | P25: 9.786 | Q25: 9.669 | R25: 9.87 | S25: 9.323 | T25: 9.63 | U25: 8.992 | V25: 10.823 | W25: Val Venosta
A26: Burggrafenamt | B26: 17.001 | D26: 13.597 | F26: 13.728 | H26: 13.482 | J26: 12.774 | K26: 13.436 | L26: 14.163 | M26: 14.253 | N26: 13.787 | O26: 12.589 | P26: 12.997 | Q26: 13.659 | R26: 14.31 | S26: 13.802 | T26: 13.645 | U26: 7.489 | V26: 19.349 | W26: Burgraviato
A27: Überetsch-Südtiroler Unterland | B27: 4.841 | D27: 4.015 | F27: 4.371 | H27: 4.133 | J27: 3.746 | K27: 3.855 | L27: 3.997 | M27: 4.025 | N27: 3.521 | O27: 3.39 | P27: 3.391 | Q27: 3.458 | R27: 3.915 | S27: 3.601 | T27: 3.717 | U27: 1.978 | V27: 13.892 | W27: Oltradige-Bassa Atesina
A28: Bozen | B28: 1.877 | D28: 1.4 | F28: 1.557 | H28: 1.493 | J28: 1.232 | K28: 1.255 | L28: 1.36 | M28: 1.362 | N28: 1.232 | O28: 1.193 | P28: 1.348 | Q28: 1.303 | R28: 1.449 | S28: 1.373 | T28: 1.387 | U28: 1.119 | V28: 6.59 | W28: Bolzano
A29: Salten-Schlern | B29: 18.229 | D29: 21.057 | F29: 19.143 | H29: 19.895 | J29: 21.008 | K29: 21.524 | L29: 21.378 | M29: 21.598 | N29: 22.377 | O29: 22.965 | P29: 22.873 | Q29: 22.566 | R29: 21.554 | S29: 22.081 | T29: 21.647 | U29: 24.743 | V29: 8.64 | W29: Salto-Sciliar
A30: Eisacktal | B30: 9.431 | D30: 9.555 | F30: 10.509 | H30: 9.771 | J30: 9.309 | K30: 9.298 | L30: 9.23 | M30: 9.165 | N30: 9.234 | O30: 9.49 | P30: 8.95 | Q30: 9.208 | R30: 9.325 | S30: 9.201 | T30: 9.335 | U30: 10.069 | V30: 7.63 | W30: Valle Isarco
A31: Wipptal | B31: 5.211 | D31: 5.037 | F31: 5.541 | H31: 5.421 | J31: 5.685 | K31: 5.459 | L31: 5.23 | M31: 5.177 | N31: 5.41 | O31: 5.34 | P31: 5.159 | Q31: 5.054 | R31: 5.071 | S31: 5.049 | T31: 5.071 | U31: 5.368 | V31: 7.728 | W31: Alta Valle Isarco
A32: Pustertal | B32: 32.807 | D32: 34.813 | F32: 34.553 | H32: 35.7 | J32: 35.703 | K32: 35.547 | L32: 34.927 | M32: 34.663 | N32: 35.101 | O32: 35.545 | P32: 35.496 | Q32: 35.083 | R32: 34.505 | S32: 35.569 | T32: 35.569 | U32: 40.242 | V32: 25.347 | W32: Val Pusteria
A34: Südtirol insgesamt | B34: 100 | D34: 100 | F34: 100 | H34: 100 | J34: 100 | K34: 100 | L34: 100 | M34: 100 | N34: 100 | O34: 100 | P34: 100 | Q34: 100 | R34: 100 | S34: 100 | T34: 100 | U34: 100 | V34: 100 | W34: Totale provincia

Sheet tab9a
A1: Tab. 9 a | Q1: INDEX / INDICE
A3: Übernachtungen in den Beherbergungsbetrieben nach Herkunftsland der Gäste - Winterhalbjahre 1991/92-2020/21
A4: Prozentuelle Verteilung
A5: Presenze negli esercizi ricettivi per paese di provenienza - Stagioni invernali 1991/92-2020/21
A6: Composizione percentuale
B9: Winterhalbjahre / Stagioni invernali
A10: HERKUNFTSLAND | C10: Λ | E10: Λ | G10: Λ | I10: Λ | W10: PAESE DI PROVENIENZA
B11: 1991/1992 | C11: Λ | D11: 1996/1997 | E11: Λ | F11: 2001/2002 | G11: Λ | H11: 2006/2007 | I11: Λ | J11: 2008/2009 | K11: 2009/2010 | L11: 2010/2011 | M11: 2011/2012 | N11: 2012/2013 | O11: 2013/2014 | P11: 2014/2015 | Q11: 2015/2016 | R11: 2016/2017 | S11: 2017/2018 | T11: 2018/2019 | U11: 2019/2020 | V11: 2020/2021
A13: Deutschland | B13: 45.9 | D13: 53.3 | F13: 50 | H13: 41.4 | J13: 40.5 | K13: 39.3 | L13: 39.3 | M13: 41.8 | N13: 42.6 | O13: 43 | P13: 43 | Q13: 42.4 | R13: 42 | S13: 41.5 | T13: 41.7 | U13: 37.5 | V13: 8.7 | W13: Germania
A14: Italien | B14: 42.6 | D14: 34.7 | F14: 36 | H14: 40 | J14: 39 | K14: 40.2 | L14: 39.2 | M14: 35.6 | N14: 34.4 | O14: 32.9 | P14: 33.1 | Q14: 33.8 | R14: 33.5 | S14: 33.7 | T14: 32.1 | U14: 35.9 | V14: 68.4 | W14: Italia
A15: Österreich | B15: 2.6 | D15: 2.3 | F15: 2.2 | H15: 2.2 | J15: 2.2 | K15: 2.2 | L15: 2.3 | M15: 2.4 | N15: 2.4 | O15: 2.6 | P15: 2.5 | Q15: 2.5 | R15: 2.6 | S15: 2.7 | T15: 2.8 | U15: 2.5 | V15: 2.9 | W15: Austria
A16: Belgien | B16: 2.2 | D16: 2.3 | F16: 2.1 | H16: 2.1 | J16: 1.9 | K16: 1.9 | L16: 1.8 | M16: 1.8 | N16: 1.7 | O16: 1.6 | P16: 1.7 | Q16: 1.6 | R16: 1.6 | S16: 1.5 | T16: 1.6 | U16: 1.4 | V16: 0.2 | W16: Belgio
A17: Niederlande | B17: 1.9 | D17: 1.7 | F17: 1.7 | H17: 1.8 | J17: 2 | K17: 2 | L17: 2 | M17: 2 | N17: 2 | O17: 2.1 | P17: 2.2 | Q17: 2.2 | R17: 2.2 | S17: 2.3 | T17: 2.4 | U17: 2.6 | V17: 0.4 | W17: Paesi Bassi
A18: Schweiz | B18: 1.4 | D18: 1.3 | F18: 1.5 | H18: 2.2 | J18: 2.3 | K18: 2.3 | L18: 2.5 | M18: 3 | N18: 3.3 | O18: 3.3 | P18: 3.6 | Q18: 3.7 | R18: 3.8 | S18: 3.7 | T18: 3.7 | U18: 2.8 | V18: 3.1 | W18: Svizzera
A19: Vereinigtes Königreich | B19: 0.5 | D19: 0.6 | F19: 0.6 | H19: 0.9 | J19: 0.9 | K19: 0.8 | L19: 0.8 | M19: 1 | N19: 1 | O19: 1.1 | P19: 1.2 | Q19: 1.3 | R19: 1.4 | S19: 1.3 | T19: 1.3 | U19: 1.5 | V19: 0.3 | W19: Regno Unito
A20: Frankreich | B20: 0.4 | D20: 0.3 | F20: 0.3 | H20: 0.5 | J20: 0.5 | K20: 0.5 | L20: 0.5 | M20: 0.5 | N20: 0.5 | O20: 0.5 | P20: 0.5 | Q20: 0.5 | R20: 0.5 | S20: 0.5 | T20: 0.5 | U20: 0.6 | V20: 0.6 | W20: Francia
A21: Vereinigte Staaten | B21: 0.3 | D21: 0.2 | F21: 0.2 | H21: 0.2 | J21: 0.2 | K21: 0.2 | L21: 0.2 | M21: 0.3 | N21: 0.3 | O21: 0.3 | P21: 0.3 | Q21: 0.3 | R21: 0.3 | S21: 0.4 | T21: 0.4 | U21: 0.5 | V21: 0.8 | W21: Stati Uniti d'America
A22: Andere Länder | B22: 2.2 | D22: 3.3 | F22: 5.5 | H22: 8.7 | J22: 10.5 | K22: 10.7 | L22: 11.4 | M22: 11.5 | N22: 11.8 | O22: 12.6 | P22: 12 | Q22: 11.6 | R22: 12.2 | S22: 12.4 | T22: 13.5 | U22: 14.7 | V22: 14.6 | W22: Altri Paesi
A24: Insgesamt | B24: 100 | D24: 100 | F24: 100 | H24: 100 | J24: 100 | K24: 100 | L24: 100 | M24: 100 | N24: 100 | O24: 100 | P24: 100 | Q24: 100 | R24: 100 | S24: 100 | T24: 100 | U24: 100 | V24: 100 | W24: Totale

Sheet tab10a
A1: Tab. 10 a | Q1: INDEX / INDICE
A3: Übernachtungen der inländischen Gäste in den Beherbergungsbetrieben nach Bezirksgemeinschaft - Winterhalbjahre 1991/92-2020/21
A4: Prozentueller Anteil der Übernachtungen der inländischen Gäste an den Gesamtübernachtungen
A5: Presenze dall'Italia negli esercizi ricettivi per comunità comprensoriale - Stagioni invernali 1991/92-2020/21
A6: Quota percentuale delle presenze di clienti italiani sul totale delle presenze
B8: Winterhalbjahre / Stagioni invernali
A9: BEZIRKSGEMEINSCHAFTEN | C9: Λ | E9: Λ | G9: Λ | I9: Λ | W9: COMUNITÀ COMPRENSORIALE
B10: 1991/1992 | C10: Λ | D10: 1996/1997 | E10: Λ | F10: 2001/2002 | G10: Λ | H10: 2006/2007 | I10: Λ | J10: 2008/2009 | K10: 2009/2010 | L10: 2010/2011 | M10: 2011/2012 | N10: 2012/2013 | O10: 2013/2014 | P10: 2014/2015 | Q10: 2015/2016 | R10: 2016/2017 | S10: 2017/2018 | T10: 2018/2019 | U10: 2019/2020 | V10: 2020/2021
A12: Vinschgau | B12: 27.481 | D12: 15.407 | F12: 17.202 | H12: 19.168 | J12: 16.427 | K12: 18.692 | L12: 17.686 | M12: 15.713 | N12: 16.097 | O12: 14.394 | P12: 14.127 | Q12: 14.527 | R12: 13.198 | S12: 13.723 | T12: 13.725 | U12: 15.076 | V12: 54.566 | W12: Val Venosta
A13: Burggrafenamt | B13: 17.296 | D13: 16.802 | F13: 21.845 | H13: 27.197 | J13: 28.473 | K13: 30.39 | L13: 28.78 | M13: 25.223 | N13: 24.461 | O13: 25.698 | P13: 25.919 | Q13: 25.897 | R13: 25.367 | S13: 25.943 | T13: 25.199 | U13: 42.007 | V13: 63.22 | W13: Burgraviato
A14: Überetsch-Südt. Unterland | B14: 33.104 | D14: 34.988 | F14: 36.373 | H14: 35.651 | J14: 35.688 | K14: 34.422 | L14: 32.358 | M14: 33.739 | N14: 34.065 | O14: 31.381 | P14: 33.858 | Q14: 34.964 | R14: 33.933 | S14: 35.035 | T14: 33.348 | U14: 51.917 | V14: 70.212 | W14: Oltradige-Bassa Atesina
A15: Bozen | B15: 64.782 | D15: 67.359 | F15: 56.69 | H15: 61.114 | J15: 60.41 | K15: 61.466 | L15: 61.091 | M15: 58.415 | N15: 57.158 | O15: 59.458 | P15: 55.446 | Q15: 57.651 | R15: 54.815 | S15: 56.514 | T15: 58.817 | U15: 66.551 | V15: 82.227 | W15: Bolzano
A16: Salten-Schlern | B16: 51.806 | D16: 36.533 | F16: 39.885 | H16: 44.388 | J16: 42.036 | K16: 42.155 | L16: 41.244 | M16: 36.491 | N16: 34.266 | O16: 31.714 | P16: 32.023 | Q16: 32.866 | R16: 32.475 | S16: 32.701 | T16: 30.824 | U16: 31.99 | V16: 69.757 | W16: Salto-Sciliar
A17: Eisacktal | B17: 31.126 | D17: 24.307 | F17: 25.95 | H17: 31.857 | J17: 32.512 | K17: 33.878 | L17: 32.761 | M17: 30.554 | N17: 29.389 | O17: 26.953 | P17: 28.302 | Q17: 28.715 | R17: 28.719 | S17: 28.908 | T17: 26.353 | U17: 29.035 | V17: 73.986 | W17: Valle Isarco
A18: Wipptal | B18: 31.926 | D18: 27.601 | F18: 23.651 | H18: 34.719 | J18: 34.457 | K18: 35.333 | L18: 35.441 | M18: 33.176 | N18: 32.022 | O18: 32.719 | P18: 33.773 | Q18: 33.999 | R18: 36.2 | S18: 36.783 | T18: 34.575 | U18: 35.867 | V18: 71.33 | W18: Alta Valle Isarco
A19: Pustertal | B19: 51.239 | D19: 42.949 | F19: 44.487 | H19: 46.707 | J19: 45.788 | K19: 47.103 | L19: 46.397 | M19: 42.667 | N19: 41.275 | O19: 39.399 | P19: 39.308 | Q19: 40.323 | R19: 40.253 | S19: 39.678 | T19: 37.916 | U19: 39.162 | V19: 64.376 | W19: Val Pusteria
A21: Südtirol insgesamt | B21: 42.594 | D21: 34.654 | F21: 36.047 | H21: 40.008 | J21: 39.017 | K21: 40.188 | L21: 39.196 | M21: 35.649 | N21: 34.403 | O21: 32.941 | P21: 33.11 | Q21: 33.825 | R21: 33.502 | S21: 33.709 | T21: 32.138 | U21: 35.917 | V21: 68.369 | W21: Totale provincia

Sheet tab11a
A1: Tab. 11 a | Q1: INDEX / INDICE
A3: Index der Brutto-Auslastung der Betten in den gastgewerblichen Beherbergungsbetrieben nach Bezirksgemeinschaft - Winterhalbjahre 1991/92-2020/21
A4: Tage
A5: Indice di utilizzazione lordo dei posti letto negli esercizi alberghieri per comunità comprensoriale - Stagioni invernali 1991/92-2020/21
A6: Giorni
B8: Winterhalbjahre / Stagioni invernali
A9: BEZIRKSGEMEINSCHAFTEN | C9: Λ | E9: Λ | G9: Λ | I9: Λ | W9: COMUNITÀ COMPRENSORIALE
B10: 1991/1992 | C10: Λ | D10: 1996/1997 | E10: Λ | F10: 2001/2002 | G10: Λ | H10: 2006/2007 | I10: Λ | J10: 2008/2009 | K10: 2009/2010 | L10: 2010/2011 | M10: 2011/2012 | N10: 2012/2013 | O10: 2013/2014 | P10: 2014/2015 | Q10: 2015/2016 | R10: 2016/2017 | S10: 2017/2018 | T10: 2018/2019 | U10: 2019/2020 | V10: 2020/2021
A12: Vinschgau | B12: 44.958 | D12: 49.53 | F12: 51.939 | H12: 53.201 | J12: 56.81 | K12: 53.634 | L12: 53.362 | M12: 55.15 | N12: 54.077 | O12: 56.382 | P12: 58.444 | Q12: 61.563 | R12: 60.506 | S12: 60.548 | T12: 65.702 | U12: 44.979 | V12: 3.017 | W12: Val Venosta
A13: Burggrafenamt | B13: 22.056 | D13: 24.349 | F13: 28.735 | H13: 32.123 | J13: 32.594 | K13: 35.283 | L13: 36.053 | M13: 36.142 | N13: 35.079 | O13: 33.449 | P13: 34.567 | Q13: 37.907 | R13: 38.741 | S13: 39.622 | T13: 39.498 | U13: 20.534 | V13: 2.55 | W13: Burgraviato
A14: Überetsch-Südt. Unterland | B14: 20.07 | D14: 22.515 | F14: 27.056 | H14: 29.024 | J14: 28.13 | K14: 28.947 | L14: 29.155 | M14: 31.245 | N14: 27.255 | O14: 25.756 | P14: 26.715 | Q14: 29.628 | R14: 31.692 | S14: 30.916 | T14: 31.779 | U14: 18.437 | V14: 5.976 | W14: Oltradige-Bassa Atesina
A15: Bozen | B15: 72.117 | D15: 85.76 | F15: 80.124 | H15: 77.325 | J15: 64.922 | K15: 67.156 | L15: 72.517 | M15: 72.99 | N15: 65.282 | O15: 67.648 | P15: 73.266 | Q15: 74.864 | R15: 78.055 | S15: 79.782 | T15: 86.695 | U15: 65.044 | V15: 22.677 | W15: Bolzano
A16: Salten-Schlern | B16: 55.407 | D16: 62.174 | F16: 61.943 | H16: 71.931 | J16: 76.493 | K16: 77.861 | L16: 75.449 | M16: 72.753 | N16: 72.829 | O16: 73.977 | P16: 74.538 | Q16: 77.553 | R16: 75.126 | S16: 81.403 | T16: 78.473 | U16: 66.541 | V16: 1.735 | W16: Salto-Sciliar
A17: Eisacktal | B17: 38.177 | D17: 46.66 | F17: 52.155 | H17: 55.957 | J17: 56.01 | K17: 58.233 | L17: 56.823 | M17: 56.864 | N17: 56.936 | O17: 55.677 | P17: 54.564 | Q17: 58.308 | R17: 58.722 | S17: 63.736 | T17: 63.721 | U17: 51.396 | V17: 3.164 | W17: Valle Isarco
A18: Wipptal | B18: 52.969 | D18: 59.782 | F18: 68.927 | H18: 71.165 | J18: 70.405 | K18: 72.386 | L18: 70.792 | M18: 71.544 | N18: 73.242 | O18: 76.049 | P18: 77.021 | Q18: 80.073 | R18: 84.509 | S18: 87.633 | T18: 87.554 | U18: 69.434 | V18: 7.253 | W18: Alta Valle Isarco
A19: Pustertal | B19: 61.977 | D19: 66.419 | F19: 69.842 | H19: 78.623 | J19: 79.195 | K19: 82.029 | L19: 79.388 | M19: 77.554 | N19: 76.791 | O19: 76.492 | P19: 77.776 | Q19: 81.608 | R19: 80.205 | S19: 85.936 | T19: 85.856 | U19: 70.282 | V19: 2.239 | W19: Val Pusteria
S20: 66.911
A21: Südtirol insgesamt | B21: 43.696 | D21: 49.27 | F21: 52.985 | H21: 59.096 | J21: 60.371 | K21: 62.096 | L21: 61 | M21: 60.339 | N21: 59.466 | O21: 59.5 | P21: 60.388 | Q21: 63.806 | R21: 63.347 | S21: 66.911 | T21: 67.02 | U21: 51.26 | V21: 3.196 | W21: Totale provincia

Sheet tab12a
A1: Tab. 12 a | K1: INDEX / INDICE
A3: Ankünfte und Übernachtungen nach Gemeinde - Winterhalbjahr 2020/21
A5: Arrivi e presenze per comune - Stagione invernale 2020/21
D7: Winterhalbjahr 2020/21 / Stagione invernale 2020/21
B8: GEMEINDEN | C8: COMUNI | D8: Ankünfte / Arrivi | F8: Übernachtungen / Presenze | H8: Mittl. Aufenthaltsdauer | I8: Betten | J8: % Auslastung / % utilizzo
D9: Anzahl | E9: % Veränd. g. 19/20 | F9: Anzahl | G9: % Veränd. g. 19/20 | J9: Brutto
D10: Numero | E10: Var. % risp. 19/20 | F10: Numero | G10: Var. % risp. 19/20 | H10: Perm. media | I10: Posti letto | J10: Lordo
A12: 001 | B12: Aldein | C12: Aldino | D12: 215 | E12: -96.1 | F12: 373 | G12: -98.7 | H12: 1.7 | I12: 912 | J12: 0.2
A13: 002 | B13: Andrian | C13: Andriano | D13: 1761 | E13: -27.6 | F13: 8403 | G13: -18.6 | H13: 4.8 | I13: 533 | J13: 8.7
A14: 003 | B14: Altrei | C14: Anterivo | D14: 4 | E14: -99.7 | F14: 12 | G14: -99.8 | H14: 3 | I14: 190 | J14: 0
A15: 004 | B15: Eppan a.d. Weinstr. | C15: Appiano | D15: 4406 | E15: -67.9 | F15: 34363 | G15: -45.5 | H15: 7.8 | I15: 4184 | J15: 4.5
A16: 005 | B16: Hafling | C16: Avelengo | D16: 2793 | E16: -88.3 | F16: 7139 | G16: -93.1 | H16: 2.6 | I16: 1388 | J16: 2.8
A18: 006 | B18: Abtei | C18: Badia | D18: 932 | E18: -99.1 | F18: 3859 | G18: -99.3 | H18: 4.1 | I18: 9029 | J18: 0.2
A19: 007 | B19: Barbian | C19: Barbiano | D19: 39 | E19: -99.4 | F19: 110 | G19: -99.5 | H19: 2.8 | I19: 770 | J19: 0.1
A20: 008 | B20: Bozen | C20: Bolzano | D20: 20268 | E20: -79.3 | F20: 73200 | G20: -64.9 | H20: 3.6 | I20: 4152 | J20: 9.7
A21: 009 | B21: Prags | C21: Braies | D21: 427 | E21: -96.6 | F21: 1279 | G21: -96.9 | H21: 3 | I21: 1263 | J21: 0.6
A22: 010 | B22: Brenner | C22: Brennero | D22: 3542 | E22: -85.1 | F22: 7037 | G22: -93.1 | H22: 2 | I22: 1893 | J22: 2.1
A24: 011 | B24: Brixen | C24: Bressanone | D24: 7411 | E24: -88.2 | F24: 21004 | G24: -89.7 | H24: 2.8 | I24: 4869 | J24: 2.4
A25: 012 | B25: Branzoll | C25: Bronzolo | D25: 383 | E25: -48.8 | F25: 1328 | G25: -40.2 | H25: 3.5 | I25: 73 | J25: 10.1
A26: 013 | B26: Bruneck | C26: Brunico | D26: 5397 | E26: -91.2 | F26: 16094 | G26: -93.7 | H26: 3 | I26: 3686 | J26: 2.4
A27: 014 | B27: Kuens | C27: Caines | D27: 3 | E27: -98.3 | F27: 30 | G27: -97.2 | H27: 10 | I27: 188 | J27: 0.1
A28: 015 | B28: Kaltern a.d. Weinstr. | C28: Caldaro | D28: 981 | E28: -85.4 | F28: 4894 | G28: -76.5 | H28: 5 | I28: 4675 | J28: 0.6
A30: 016 | B30: Freienfeld | C30: Campo di Trens | D30: 2462 | E30: -84.8 | F30: 12161 | G30: -72.5 | H30: 4.9 | I30: 1189 | J30: 5.7
A31: 017 | B31: Sand in Taufers | C31: Campo Tures | D31: 840 | E31: -97.6 | F31: 4407 | G31: -97.3 | H31: 5.2 | I31: 3267 | J31: 0.7
A32: 018 | B32: Kastelbell-Tschars | C32: Castelbello-Ciardes | D32: 242 | E32: -76.9 | F32: 1707 | G32: -58.6 | H32: 7.1 | I32: 631 | J32: 1.5
A33: 019 | B33: Kastelruth | C33: Castelrotto | D33: 4946 | E33: -95.8 | F33: 15278 | G33: -97.5 | H33: 3.1 | I33: 9010 | J33: 0.9
A34: 020 | B34: Tscherms | C34: Cermes | D34: 53 | E34: -96.4 | F34: 265 | G34: -94.3 | H34: 5 | I34: 697 | J34: 0.2
A36: 021 | B36: Kiens | C36: Chienes | D36: 753 | E36: -97.1 | F36: 2756 | G36: -97.5 | H36: 3.7 | I36: 1679 | J36: 0.9
A37: 022 | B37: Klausen | C37: Chiusa | D37: 2476 | E37: -82.8 | F37: 7896 | G37: -77.6 | H37: 3.2 | I37: 1391 | J37: 3.1
A38: 023 | B38: Karneid | C38: Cornedo | D38: 1023 | E38: -69.1 | F38: 2134 | G38: -74 | H38: 2.1 | I38: 713 | J38: 1.7
A39: 024 | B39: Kurtatsch a.d. Weinstr. | C39: Cortaccia | D39: 84 | E39: -91.7 | F39: 256 | G39: -91.8 | H39: 3 | I39: 532 | J39: 0.3
A40: 025 | B40: Kurtinig a.d. Weinstr. | C40: Cortina | D40: 478 | E40: -79.3 | F40: 1924 | G40: -67.6 | H40: 4 | I40: 183 | J40: 5.8
A42: 026 | B42: Corvara | C42: Corvara | D42: 596 | E42: -99.4 | F42: 2177 | G42: -99.6 | H42: 3.7 | I42: 7661 | J42: 0.2
A43: 027 | B43: Graun im Vinschgau | C43: Curon Venosta | D43: 655 | E43: -98.1 | F43: 3279 | G43: -98.1 | H43: 5 | I43: 3021 | J43: 0.6
A44: 028 | B44: Toblach | C44: Dobbiaco | D44: 3921 | E44: -91.6 | F44: 13760 | G44: -92.3 | H44: 3.5 | I44: 5279 | J44: 1.4
A45: 029 | B45: Neumarkt | C45: Egna | D45: 970 | E45: -68.3 | F45: 2391 | G45: -62.4 | H45: 2.5 | I45: 223 | J45: 5.9
A46: 030 | B46: Pfalzen | C46: Falzes | D46: 293 | E46: -97.7 | F46: 3946 | G46: -93.2 | H46: 13.5 | I46: 1000 | J46: 2.2
A48: 031 | B48: Völs am Schlern | C48: Fiè allo Sciliar | D48: 266 | E48: -98.8 | F48: 4620 | G48: -95.8 | H48: 17.4 | I48: 2808 | J48: 0.9
A49: 032 | B49: Franzensfeste | C49: Fortezza | D49: 278 | E49: -90.9 | F49: 1078 | G49: -85 | H49: 3.9 | I49: 200 | J49: 3
A50: 033 | B50: Villnöß | C50: Funes | D50: 430 | E50: -94.4 | F50: 1222 | G50: -95.6 | H50: 2.8 | I50: 1493 | J50: 0.5
A51: 034 | B51: Gais | C51: Gais | D51: 481 | E51: -97.1 | F51: 1402 | G51: -97.9 | H51: 2.9 | I51: 1056 | J51: 0.7
A52: 035 | B52: Gargazon | C52: Gargazzone | D52: 314 | E52: -82.8 | F52: 2006 | G52: -67.4 | H52: 6.4 | I52: 307 | J52: 3.6
A54: 036 | B54: Glurns | C54: Glorenza | D54: 88 | E54: -93.9 | F54: 193 | G54: -95.9 | H54: 2.2 | I54: 669 | J54: 0.2
A55: 037 | B55: Latsch | C55: Laces | D55: 775 | E55: -85.3 | F55: 3425 | G55: -82.8 | H55: 4.4 | I55: 1810 | J55: 1
A56: 038 | B56: Algund | C56: Lagundo | D56: 1557 | E56: -87.1 | F56: 8434 | G56: -78 | H56: 5.4 | I56: 3623 | J56: 1.3
A57: 039 | B57: Lajen | C57: Laion | D57: 302 | E57: -97.3 | F57: 810 | G57: -98.2 | H57: 2.7 | I57: 1053 | J57: 0.4
A58: 040 | B58: Leifers | C58: Laives | D58: 3771 | E58: -78.2 | F58: 19884 | G58: -56.8 | H58: 5.3 | I58: 1515 | J58: 7.3
A60: 041 | B60: Lana | C60: Lana | D60: 1128 | E60: -90.9 | F60: 7442 | G60: -81.9 | H60: 6.6 | I60: 3927 | J60: 1
A61: 042 | B61: Laas | C61: Lasa | D61: 216 | E61: -75.9 | F61: 1419 | G61: -57.1 | H61: 6.6 | I61: 339 | J61: 2.3
A62: 043 | B62: Laurein | C62: Lauregno | D62: 2 | E62: -93.5 | F62: 4 | G62: -96.9 | H62: 2 | I62: 52 | J62: 0
A63: 044 | B63: Lüsen | C63: Luson | D63: 1512 | E63: -83.3 | F63: 3570 | G63: -91.2 | H63: 2.4 | I63: 986 | J63: 2
A64: 045 | B64: Margreid a.d. Weinstr. | C64: Magrè | D64: 62 | E64: -85.9 | F64: 344 | G64: -71.5 | H64: 5.5 | I64: 122 | J64: 1.6
A66: 046 | B66: Mals | C66: Malles Venosta | D66: 2114 | E66: -90.2 | F66: 6932 | G66: -92.3 | H66: 3.3 | I66: 2513 | J66: 1.5
A67: 047 | B67: Enneberg | C67: Marebbe | D67: 1598 | E67: -97.4 | F67: 4501 | G67: -98.6 | H67: 2.8 | I67: 4700 | J67: 0.5
A68: 048 | B68: Marling | C68: Marlengo | D68: 412 | E68: -91.4 | F68: 2278 | G68: -86.2 | H68: 5.5 | I68: 1632 | J68: 0.8
A69: 049 | B69: Martell | C69: Martello | D69: 936 | E69: -68 | F69: 2364 | G69: -80.5 | H69: 2.5 | I69: 697 | J69: 1.9
A70: 050 | B70: Mölten | C70: Meltina | D70: 56 | E70: -95.8 | F70: 83 | G70: -98.1 | H70: 1.5 | I70: 457 | J70: 0.1
A72: 051 | B72: Meran | C72: Merano | D72: 6079 | E72: -91.9 | F72: 24582 | G72: -87.7 | H72: 4 | I72: 6246 | J72: 2.2
A73: 052 | B73: Welsberg-Taisten | C73: Monguelfo | D73: 4129 | E73: -75.2 | F73: 10795 | G73: -84.1 | H73: 2.6 | I73: 1331 | J73: 4.5
A74: 053 | B74: Montan | C74: Montagna | D74: 194 | E74: -90.8 | F74: 1397 | G74: -78.9 | H74: 7.2 | I74: 622 | J74: 1.2
A75: 054 | B75: Moos in Passeier | C75: Moso in Passiria | D75: 2460 | E75: -75.5 | F75: 6084 | G75: -86.4 | H75: 2.5 | I75: 1261 | J75: 2.7
A76: 055 | B76: Nals | C76: Nalles | D76: 1189 | E76: -65.4 | F76: 4753 | G76: -56.4 | H76: 4 | I76: 684 | J76: 3.8
A78: 056 | B78: Naturns | C78: Naturno | D78: 775 | E78: -92 | F78: 2943 | G78: -91.5 | H78: 3.8 | I78: 2890 | J78: 0.6
A79: 057 | B79: Natz-Schabs | C79: Naz-Sciaves | D79: 903 | E79: -96 | F79: 6499 | G79: -93.7 | H79: 7.2 | I79: 2643 | J79: 1.4
A80: 058 | B80: Welschnofen | C80: Nova Levante | D80: 439 | E80: -97.7 | F80: 1772 | G80: -98 | H80: 4 | I80: 1782 | J80: 0.5
A81: 059 | B81: Deutschnofen | C81: Nova Ponente | D81: 640 | E81: -98.1 | F81: 1839 | G81: -98.8 | H81: 2.9 | I81: 2875 | J81: 0.4
A82: 060 | B82: Auer | C82: Ora | D82: 1642 | E82: -76.6 | F82: 6764 | G82: -60.8 | H82: 4.1 | I82: 1222 | J82: 3.1
A84: 061 | B84: St.Ulrich | C84: Ortisei | D84: 2546 | E84: -95.6 | F84: 9251 | G84: -96.9 | H84: 3.6 | I84: 4783 | J84: 1.1
A85: 062 | B85: Partschins | C85: Parcines | D85: 114 | E85: -98 | F85: 1572 | G85: -91.2 | H85: 13.8 | I85: 2171 | J85: 0.4
A86: 063 | B86: Percha | C86: Perca | D86: 27 | E86: -99.6 | F86: 726 | G86: -97.7 | H86: 26.9 | I86: 414 | J86: 1
A87: 064 | B87: Plaus | C87: Plaus | D87: 1 | E87: -99.9 | F87: 290 | G87: -92.5 | H87: 181 | I87: 353 | J87: 0.5
A88: 065 | B88: Waidbruck | C88: Ponte Gardena | D88: 4 | E88: -63.6 | F88: 401 | G88: -20.9 | H88: 100.3 | I88: 19 | J88: 11.7
A90: 066 | B90: Burgstall | C90: Postal | D90: 1510 | E90: -70 | F90: 4434 | G90: -62.2 | H90: 2.9 | I90: 464 | J90: 5.3
A91: 067 | B91: Prad am Stilfser Joch | C91: Prato allo Stelvio | D91: 655 | E91: -89.4 | F91: 1836 | G91: -92.5 | H91: 2.8 | I91: 1872 | J91: 0.5
A92: 068 | B92: Prettau | C92: Predoi | D92: 81 | E92: -96 | F92: 195 | G92: -98.1 | H92: 2.4 | I92: 377 | J92: 0.3
A93: 069 | B93: Proveis | C93: Proves | D93: 3 | E93: -95.2 | F93: 8 | G93: -96.9 | H93: 2.7 | I93: 102 | J93: 0
A94: 070 | B94: Ratschings | C94: Racines | D94: 7322 | E94: -88.3 | F94: 17174 | G94: -93.2 | H94: 2.3 | I94: 4306 | J94: 2.2
A96: 071 | B96: Rasen-Antholz | C96: Rasun Anterselva | D96: 2155 | E96: -93.9 | F96: 8879 | G96: -94.6 | H96: 4.1 | I96: 3613 | J96: 1.4
A97: 072 | B97: Ritten | C97: Renon | D97: 3015 | E97: -87.7 | F97: 9426 | G97: -88.3 | H97: 3.1 | I97: 2956 | J97: 1.8
A98: 073 | B98: Riffian | C98: Rifiano | D98: 40 | E98: -95.4 | F98: 135 | G98: -94.1 | H98: 3.4 | I98: 700 | J98: 0.1
A99: 074 | B99: Mühlbach | C99: Rio Pusteria | D99: 2943 | E99: -95.2 | F99: 7166 | G99: -97.5 | H99: 2.4 | I99: 4354 | J99: 0.9
A100: 075 | B100: Rodeneck | C100: Rodengo | D100: 197 | E100: -97.4 | F100: 409 | G100: -98.6 | H100: 2.1 | I100: 937 | J100: 0.2
A102: 076 | B102: Salurn a.d.Weinstr. | C102: Salorno s.s.d.vino | D102: 1182 | E102: -53.8 | F102: 2317 | G102: -54.9 | H102: 2 | I102: 456 | J102: 2.8
A103: 077 | B103: Innichen | C103: S.Candido | D103: 1006 | E103: -97.9 | F103: 4038 | G103: -98.2 | H103: 4 | I103: 3650 | J103: 0.6
A104: 079 | B104: Jenesien | C104: S.Genesio | D104: 485 | E104: -86.3 | F104: 1478 | G104: -88.4 | H104: 3 | I104: 720 | J104: 1.1
A105: 080 | B105: St.Leonhard in Pass. | C105: S.Leonardo in Passi | D105: 1778 | E105: -84.4 | F105: 5079 | G105: -88.1 | H105: 2.9 | I105: 1884 | J105: 1.5
A106: 081 | B106: St.Lorenzen | C106: S.Lorenzo di Sebato | D106: 3904 | E106: -88.3 | F106: 14190 | G106: -90.6 | H106: 3.6 | I106: 1768 | J106: 4.4
A108: 082 | B108: St.Martin in Thurn | C108: S.Martino in Badia | D108: 172 | E108: -98.6 | F108: 770 | G108: -98.6 | H108: 4.5 | I108: 1261 | J108: 0.3
A109: 083 | B109: St.Martin in Passeier | C109: S.Martino in Passir | D109: 3529 | E109: -73 | F109: 15452 | G109: -67.4 | H109: 4.4 | I109: 1644 | J109: 5.2
A110: 084 | B110: St.Pankraz | C110: S.Pancrazio | D110: 56 | E110: -94.7 | F110: 290 | G110: -93.3 | H110: 5.2 | I110: 220 | J110: 0.7
A111: 085 | B111: St.Christina in Gröden | C111: S.Cristina Val Gard | D111: 754 | E111: -98 | F111: 2222 | G111: -98.9 | H111: 2.9 | I111: 3161 | J111: 0.4
A112: 086 | B112: Sarntal | C112: Sarentino | D112: 1033 | E112: -92.7 | F112: 1948 | G112: -96 | H112: 1.9 | I112: 1602 | J112: 0.7
A114: 087 | B114: Schenna | C114: Scena | D114: 672 | E114: -96.5 | F114: 2886 | G114: -96 | H114: 4.3 | I114: 5899 | J114: 0.3
A115: 088 | B115: Mühlwald | C115: Selva dei Molini | D115: 113 | E115: -98.3 | F115: 568 | G115: -98.4 | H115: 5 | I115: 835 | J115: 0.4
A116: 089 | B116: Wolkenstein in Gröden | C116: Selva di Val Garden | D116: 721 | E116: -99.4 | F116: 3829 | G116: -99.4 | H116: 5.3 | I116: 8643 | J116: 0.2
A117: 091 | B117: Schnals | C117: Senales | D117: 1547 | E117: -93.8 | F117: 6134 | G117: -95.1 | H117: 4 | I117: 2389 | J117: 1.4
A118: 092 | B118: Sexten | C118: Sesto | D118: 1930 | E118: -96.8 | F118: 7798 | G118: -97.2 | H118: 4 | I118: 4657 | J118: 0.9
A120: 093 | B120: Schlanders | C120: Silandro | D120: 1543 | E120: -67.2 | F120: 5467 | G120: -65.4 | H120: 3.5 | I120: 1329 | J120: 2.3
A121: 094 | B121: Schluderns | C121: Sluderno | D121: 54 | E121: -97.7 | F121: 270 | G121: -96.9 | H121: 5 | I121: 343 | J121: 0.4
A122: 095 | B122: Stilfs | C122: Stelvio | D122: 3092 | E122: -90.2 | F122: 13562 | G122: -92.1 | H122: 4.4 | I122: 3585 | J122: 2.1
A123: 096 | B123: Terenten | C123: Terento | D123: 647 | E123: -95 | F123: 1540 | G123: -96.9 | H123: 2.4 | I123: 1016 | J123: 0.8
A124: 097 | B124: Terlan | C124: Terlano | D124: 614 | E124: -85.6 | F124: 2424 | G124: -78.6 | H124: 3.9 | I124: 742 | J124: 1.8
A126: 098 | B126: Tramin a.d. Weinstr. | C126: Termeno | D126: 150 | E126: -92.6 | F126: 3766 | G126: -52.3 | H126: 25.1 | I126: 1522 | J126: 1.4
A127: 099 | B127: Tisens | C127: Tesimo | D127: 433 | E127: -77.6 | F127: 2227 | G127: -68.1 | H127: 5.1 | I127: 1342 | J127: 0.9
A128: 100 | B128: Tiers | C128: Tires | D128: 1145 | E128: -82 | F128: 2523 | G128: -90.5 | H128: 2.2 | I128: 964 | J128: 1.4
A129: 101 | B129: Tirol | C129: Tirolo | D129: 439 | E129: -94.2 | F129: 2256 | G129: -91.6 | H129: 5.1 | I129: 5087 | J129: 0.2
A130: 102 | B130: Truden im Naturpark | C130: Trodena | D130: 212 | E130: -94.7 | F130: 702 | G130: -95.3 | H130: 3.3 | I130: 537 | J130: 0.7
A132: 103 | B132: Taufers im Münstertal | C132: Tubre | D132: 68 | E132: -96.7 | F132: 443 | G132: -94.7 | H132: 6.5 | I132: 183 | J132: 1.3
A133: 104 | B133: Ulten | C133: Ultimo | D133: 734 | E133: -94.3 | F133: 2599 | G133: -95.6 | H133: 3.5 | I133: 1349 | J133: 1.1
A134: 105 | B134: Pfatten | C134: Vadena | D134: 30 | E134: -85.4 | F134: 532 | G134: -33.2 | H134: 17.7 | I134: 247 | J134: 1.2
A135: 106 | B135: Olang | C135: Valdaora | D135: 480 | E135: -98.9 | F135: 2180 | G135: -99 | H135: 4.5 | I135: 3087 | J135: 0.4
A136: 107 | B136: Pfitsch | C136: Val di Vizze | D136: 37 | E136: -99.5 | F136: 3464 | G136: -88.5 | H136: 93.6 | I136: 1032 | J136: 1.9
A138: 108 | B138: Ahrntal | C138: Valle Aurina | D138: 6125 | E138: -91.7 | F138: 16186 | G138: -95.5 | H138: 2.6 | I138: 5271 | J138: 1.7
A139: 109 | B139: Gsies | C139: Valle di Casies | D139: 3423 | E139: -83.4 | F139: 10852 | G139: -87.9 | H139: 3.2 | I139: 1806 | J139: 3.3
A140: 110 | B140: Vintl | C140: Vandoies | D140: 376 | E140: -93.6 | F140: 4396 | G140: -74.8 | H140: 11.7 | I140: 1082 | J140: 2.2
A141: 111 | B141: Vahrn | C141: Varna | D141: 2731 | E141: -78.4 | F141: 6771 | G141: -78.7 | H141: 2.5 | I141: 1005 | J141: 3.7
A142: 112 | B142: Vöran | C142: Verano | D142: 49 | E142: -94.2 | F142: 181 | G142: -95.4 | H142: 3.7 | I142: 337 | J142: 0.3
A144: 113 | B144: Niederdorf | C144: Villabassa | D144: 752 | E144: -93.5 | F144: 2409 | G144: -94.8 | H144: 3.2 | I144: 1327 | J144: 1
A145: 114 | B145: Villanders | C145: Villandro | D145: 28 | E145: -99.6 | F145: 122 | G145: -99.6 | H145: 4.4 | I145: 935 | J145: 0.1
A146: 115 | B146: Sterzing | C146: Vipiteno | D146: 5403 | E146: -82.7 | F146: 12306 | G146: -85.4 | H146: 2.3 | I146: 1229 | J146: 5.5
A147: 116 | B147: Feldthurns | C147: Velturno | D147: 598 | E147: -92 | F147: 1923 | G147: -92.6 | H147: 3.2 | I147: 709 | J147: 1.5
A148: 117 | B148: Wengen | C148: La Valle | D148: 166 | E148: -98 | F148: 769 | G148: -98.1 | H148: 4.6 | I148: 722 | J148: 0.6
A149: 118 | B149: U.L.Frau i.W.-St.Felix | C149: Senale-S.Felice | D149: 178 | E149: -83.8 | F149: 494 | G149: -82.4 | H149: 2.8 | I149: 201 | J149: 1.4
B151: Südtirol insgesamt | C151: Totale provincia | D151: 172104 | E151: -92.4 | F151: 624166 | G151: -93.6 | H151: 3.6 | I151: 228995 | J151: 1.5

Sheet tab13a
A1: Tab. 13 a | I1: INDEX / INDICE
A3: Ankünfte und Übernachtungen nach Tourismusverein - Winterhalbjahre 2020/21
A5: Arrivi e presenze per associazioni turistici - Stagioni invernali 2020/21
C7: Winterhalbjahr 2020/21 / Stagione invernale 2020/21
A8: TOURISMUSVEREINE | B8: ASSOCIAZIONE TURISTICHE | C8: Ankünfte / Arrivi | E8: Übernachtungen / Presenze | G8: Mittl. Aufenthaltsdauer | H8: Betten | I8: % Auslastung / % utilizzo
C9: Anzahl | D9: % Veränd. g. 19/20 | E9: Anzahl | F9: % Veränd. g. 19/20 | I9: Brutto
C10: Numero | D10: Var. % risp. 19/20 | E10: Numero | F10: Var. % risp. 19/20 | G10: Perm. media | H10: Posti letto | I10: Lordo
A12: Abtei | B12: Badia | C12: 932 | D12: -99.1 | E12: 3859 | F12: -99.3 | G12: 4.1 | H12: 9029 | I12: 0.2
A13: Ahrntal | B13: Valle Aurina | C13: 6206 | D13: -91.8 | E13: 16381 | F13: -95.6 | G13: 2.6 | H13: 5648 | I13: 1.6
A14: Aldein-Radein | B14: Aldino-Redagno | C14: 215 | D14: -96.1 | E14: 373 | F14: -98.7 | G14: 1.7 | H14: 912 | I14: 0.2
A15: Algund | B15: Lagundo | C15: 1557 | D15: -87.1 | E15: 8434 | F15: -78 | G15: 5.4 | H15: 3623 | I15: 1.3
A16: Andrian | B16: Andriano | C16: 1761 | D16: -27.6 | E16: 8403 | F16: -18.6 | G16: 4.8 | H16: 533 | I16: 8.7
A17: Antholzertal | B17: Valle Anterselva | C17: 2155 | D17: -93.9 | E17: 8879 | F17: -94.6 | G17: 4.1 | H17: 3613 | I17: 1.4
A18: Auer-Montan-Neumarkt-Salurn | B18: Ora-Montagna-Egna-Salorno | C18: 3988 | D18: -72.9 | E18: 12869 | F18: -63.6 | G18: 3.2 | H18: 2523 | I18: 2.8
A19: Bozen | B19: Bolzano | C19: 20268 | D19: -79.3 | E19: 73200 | F19: -64.9 | G19: 3.6 | H19: 4152 | I19: 9.7
A20: Brixen | B20: Bressanone | C20: 10420 | D20: -86.7 | E20: 28853 | F20: -88.1 | G20: 2.8 | H20: 6074 | I20: 2.6
A21: Bruneck Kronplatz Tourismus | B21: Brunico Kronplatz Turismo | C21: 10102 | D21: -92.2 | E21: 36358 | F21: -93.6 | G21: 3.6 | H21: 7924 | I21: 2.5
A22: Corvara-Colfosco | B22: Corvara-Colfosco | C22: 596 | D22: -99.4 | E22: 2177 | F22: -99.6 | G22: 3.7 | H22: 7661 | I22: 0.2
A23: Deutschnonsberg | B23: Alta Val di Non | C23: 180 | D23: -84.1 | E23: 498 | F23: -83 | G23: 2.8 | H23: 253 | I23: 1.1
A24: Dorf Tirol | B24: Tirolo | C24: 439 | D24: -94.2 | E24: 2256 | F24: -91.6 | G24: 5.1 | H24: 5087 | I24: 0.2
A25: Eggental | B25: Val d'Ega | C25: 640 | D25: -98.1 | E25: 1839 | F25: -98.8 | G25: 2.9 | H25: 2875 | I25: 0.4
A26: Eppan an der Weinstraße | B26: Appiano sulla Strada del Vino | C26: 4406 | D26: -67.9 | E26: 34363 | F26: -45.5 | G26: 7.8 | H26: 4184 | I26: 4.5
A27: Gitschberg Jochtal | B27: Gitschberg Jochtal | C27: 3319 | D27: -95 | E27: 11562 | F27: -96.2 | G27: 3.5 | H27: 5436 | I27: 1.2
A28: Gossensaß | B28: Colle Isarco | C28: 3542 | D28: -85.1 | E28: 7037 | F28: -93.1 | G28: 2 | H28: 1893 | I28: 2.1
A29: Gsieser Tal-Welsberg-Taisten | B29: Val Casies-Monguelfo-Tesido | C29: 7552 | D29: -79.8 | E29: 21647 | F29: -86.3 | G29: 2.9 | H29: 3137 | I29: 3.8
A30: Hafling-Vöran-Meran 2000 | B30: Avelengo-Verano-Merano 2000 | C30: 2842 | D30: -88.5 | E30: 7320 | F30: -93.2 | G30: 2.6 | H30: 1725 | I30: 2.3
A31: Innichen | B31: S.Candido | C31: 1006 | D31: -97.9 | E31: 4038 | F31: -98.2 | G31: 4 | H31: 3650 | I31: 0.6
A32: Jenesien | B32: S.Genesio | C32: 485 | D32: -86.3 | E32: 1478 | F32: -88.4 | G32: 3 | H32: 720 | I32: 1.1
A33: Kaltern am See | B33: Caldaro al Lago | C33: 981 | D33: -85.4 | E33: 4894 | F33: -76.5 | G33: 5 | H33: 4675 | I33: 0.6
A34: Kastelbell-Tschars | B34: Castelbello-Ciardes | C34: 242 | D34: -76.9 | E34: 1707 | F34: -58.6 | G34: 7.1 | H34: 631 | I34: 1.5
A35: Kiens | B35: Chienes | C35: 753 | D35: -97.1 | E35: 2756 | F35: -97.5 | G35: 3.7 | H35: 1679 | I35: 0.9
A36: Klausen, Barbian, Feldthurns und Villand | B36: Chiusa, Barbiano, Velturno e Villandro | C36: 3141 | D36: -91.3 | E36: 10051 | F36: -91.3 | G36: 3.2 | H36: 3805 | I36: 1.5
A37: Lajen | B37: Laion | C37: 302 | D37: -97.3 | E37: 810 | F37: -98.2 | G37: 2.7 | H37: 1053 | I37: 0.4
A38: Lana und Umgebung | B38: Lana e dintorni | C38: 3005 | D38: -85.5 | E38: 14147 | F38: -77.8 | G38: 4.7 | H38: 5395 | I38: 1.4
A39: Latsch-Martell mit Goldrain, Morter, Ta | B39: Laces-Martello con Coldrano, Morter, Tar | C39: 1711 | D39: -79.1 | E39: 5789 | F39: -82 | G39: 3.4 | H39: 2507 | I39: 1.3
A40: Leifers, Branzoll, Pfatten | B40: Laives-Bronzolo-Vadena | C40: 4184 | D40: -77.1 | E40: 21744 | F40: -55.7 | G40: 5.2 | H40: 1835 | I40: 6.5
A41: Lüsen | B41: Luson | C41: 1512 | D41: -83.3 | E41: 3570 | F41: -91.2 | G41: 2.4 | H41: 986 | I41: 2
A42: Mals, Schluderns, Taufers im Münstertal | B42: Malles, Sluderno, Tubre, Glorenza | C42: 2324 | D42: -91.6 | E42: 7838 | F42: -93 | G42: 3.4 | H42: 3708 | I42: 1.2
A43: Marling | B43: Marlengo | C43: 412 | D43: -91.4 | E43: 2278 | F43: -86.2 | G43: 5.5 | H43: 1632 | I43: 0.8
A44: Meran | B44: Merano | C44: 6079 | D44: -91.9 | E44: 24582 | F44: -87.7 | G44: 4 | H44: 6246 | I44: 2.2
A45: Mölten | B45: Meltina | C45: 56 | D45: -95.8 | E45: 83 | F45: -98.1 | G45: 1.5 | H45: 457 | I45: 0.1
A46: Nals | B46: Nalles | C46: 1189 | D46: -65.4 | E46: 4753 | F46: -56.4 | G46: 4 | H46: 684 | I46: 3.8
A47: Naturns-Plaus | B47: Naturno-Plaus | C47: 776 | D47: -92.7 | E47: 3233 | F47: -91.6 | G47: 4.2 | H47: 3243 | I47: 0.6
A48: Naturpark Trudner Horn | B48: Parco Naturale Monte Corno | C48: 216 | D48: -95.9 | E48: 714 | F48: -96.4 | G48: 3.3 | H48: 727 | I48: 0.5
A49: Natz-Schabs | B49: Naz-Sciaves | C49: 903 | D49: -96 | E49: 6499 | F49: -93.7 | G49: 7.2 | H49: 2643 | I49: 1.4
A50: Niederdorf | B50: Villabassa | C50: 752 | D50: -93.5 | E50: 2409 | F50: -94.8 | G50: 3.2 | H50: 1327 | I50: 1
A51: Olang | B51: Valdaora | C51: 480 | D51: -98.9 | E51: 2180 | F51: -99 | G51: 4.5 | H51: 3087 | I51: 0.4
A52: Ortlergebiet im Nationalpark Stilfserjoc | B52: Gruppo Ortles nel Parco Nazionale dello | C52: 3092 | D52: -90.2 | E52: 13562 | F52: -92.1 | G52: 4.4 | H52: 3585 | I52: 2.1
A53: Partschins, Rabland und Töll | B53: Parcines, Rablà e Tel | C53: 114 | D53: -98 | E53: 1572 | F53: -91.2 | G53: 13.8 | H53: 2171 | I53: 0.4
A54: Passeiertal | B54: Val Passiria | C54: 7810 | D54: -78 | E54: 26780 | F54: -80.6 | G54: 3.4 | H54: 5677 | I54: 2.6
A55: Prad am Stiflserjoch | B55: Prato allo Stelvio | C55: 655 | D55: -89.4 | E55: 1836 | F55: -92.5 | G55: 2.8 | H55: 1872 | I55: 0.5
A56: Pragser Tal | B56: Valle di Braies | C56: 427 | D56: -96.6 | E56: 1279 | F56: -96.9 | G56: 3 | H56: 1263 | I56: 0.6
A57: Ratschings | B57: Racines | C57: 7322 | D57: -88.3 | E57: 17174 | F57: -93.2 | G57: 2.3 | H57: 4306 | I57: 2.2
A58: Reschenpass | B58: Passo Resia | C58: 655 | D58: -98.1 | E58: 3279 | F58: -98.1 | G58: 5 | H58: 3021 | I58: 0.6
A59: Ritten | B59: Renon | C59: 3015 | D59: -87.7 | E59: 9426 | F59: -88.3 | G59: 3.1 | H59: 2956 | I59: 1.8
A60: Rodeneck | B60: Rodengo | C60: 197 | D60: -97.4 | E60: 409 | F60: -98.6 | G60: 2.1 | H60: 937 | I60: 0.2
A61: Sand in Taufers | B61: Campo Tures | C61: 953 | D61: -97.7 | E61: 4975 | F61: -97.5 | G61: 5.2 | H61: 4102 | I61: 0.7
A62: Sarntal | B62: Val Sarentino | C62: 1033 | D62: -92.7 | E62: 1948 | F62: -96 | G62: 1.9 | H62: 1602 | I62: 0.7
A63: Schenna | B63: Scena | C63: 672 | D63: -96.5 | E63: 2886 | F63: -96 | G63: 4.3 | H63: 5899 | I63: 0.3
A64: Schlanders-Laas im Nationalpark Stilfser | B64: Silandro-Lasa nel Parco Nazionale dello | C64: 1759 | D64: -68.6 | E64: 6886 | F64: -64 | G64: 3.9 | H64: 1668 | I64: 2.3
A65: Schlern (Kastelruth) | B65: Sciliar-Castelrotto | C65: 944 | D65: -97.5 | E65: 2166 | F65: -98.8 | G65: 2.3 | H65: 3117 | I65: 0.4
A66: Schnals | B66: Val Senales | C66: 1547 | D66: -93.8 | E66: 6134 | F66: -95.1 | G66: 4 | H66: 2389 | I66: 1.4
A67: Seis am Schlern | B67: Siusi allo Sciliar | C67: 719 | D67: -97.2 | E67: 3224 | F67: -97.6 | G67: 4.5 | H67: 2055 | I67: 0.9
A68: Seiser Alm | B68: Alpe di Siusi | C68: 2839 | D68: -90.5 | E68: 8512 | F68: -94.8 | G68: 3 | H68: 2052 | I68: 2.3
A69: Sexten | B69: Sesto | C69: 1930 | D69: -96.8 | E69: 7798 | F69: -97.2 | G69: 4 | H69: 4657 | I69: 0.9
A70: St.Christina | B70: S.Cristina | C70: 754 | D70: -98 | E70: 2222 | F70: -98.9 | G70: 2.9 | H70: 3161 | I70: 0.4
A71: St.Ulrich | B71: Ortisei | C71: 2990 | D71: -96.4 | E71: 10627 | F71: -97.5 | G71: 3.6 | H71: 6465 | I71: 0.9
A72: St.Vigil in Enneberg | B72: S.Vigilio di Marebbe | C72: 1770 | D72: -97.6 | E72: 5271 | F72: -98.6 | G72: 3 | H72: 5961 | I72: 0.5
A73: Steinegg | B73: Collepietra | C73: 1023 | D73: -69.1 | E73: 2134 | F73: -74 | G73: 2.1 | H73: 713 | I73: 1.7
A74: Sterzing | B74: Vipiteno | C74: 7902 | D74: -85.6 | E74: 27931 | F74: -82.4 | G74: 3.5 | H74: 3450 | I74: 4.5
A75: Südtiroler Unterland | B75: Bassa Atesina | C75: 624 | D75: -83.4 | E75: 2524 | F75: -75.4 | G75: 4 | H75: 837 | I75: 1.7
A76: Terenten | B76: Terento | C76: 647 | D76: -95 | E76: 1540 | F76: -96.9 | G76: 2.4 | H76: 1016 | I76: 0.8
A77: Terlan | B77: Terlano | C77: 614 | D77: -85.6 | E77: 2424 | F77: -78.6 | G77: 3.9 | H77: 742 | I77: 1.8
A78: Tiers am Rosengarten | B78: Tires al Catinaccio | C78: 1145 | D78: -82 | E78: 2523 | F78: -90.5 | G78: 2.2 | H78: 964 | I78: 1.4
A79: Tisens-Prissian | B79: Tesimo-Prissiano | C79: 433 | D79: -77.6 | E79: 2227 | F79: -68.1 | G79: 5.1 | H79: 1342 | I79: 0.9
A80: Toblach | B80: Dobbiaco | C80: 3921 | D80: -91.6 | E80: 13760 | F80: -92.3 | G80: 3.5 | H80: 5279 | I80: 1.4
A81: Tramin | B81: Termeno | C81: 150 | D81: -92.6 | E81: 3766 | F81: -52.3 | G81: 25.1 | H81: 1522 | I81: 1.4
A82: Ultental-Proveis | B82: Val d'Ultimo-Proves | C82: 793 | D82: -94.3 | E82: 2897 | F82: -95.4 | G82: 3.7 | H82: 1671 | I82: 1
A83: Villnöß | B83: Funes | C83: 430 | D83: -94.4 | E83: 1222 | F83: -95.6 | G83: 2.8 | H83: 1493 | I83: 0.5
A84: Völs am Schlern | B84: Fiè allo Sciliar | C84: 266 | D84: -98.8 | E84: 4620 | F84: -95.8 | G84: 17.4 | H84: 2808 | I84: 0.9
A85: Welschnofen-Karersee | B85: Nova Levante-Carezza | C85: 439 | D85: -97.7 | E85: 1772 | F85: -98 | G85: 4 | H85: 1782 | I85: 0.5
A86: Wengen | B86: La Valle | C86: 166 | D86: -98 | E86: 769 | F86: -98.1 | G86: 4.6 | H86: 722 | I86: 0.6
A87: Wolkenstein | B87: Selva Val Gardena | C87: 721 | D87: -99.4 | E87: 3829 | F87: -99.4 | G87: 5.3 | H87: 8643 | I87: 0.2
A88: Ohne Tourismusverein | B88: Senza associazione turistica | C88: 4 | D88: -63.6 | E88: 401 | F88: -20.9 | G88: 100.3 | H88: 123 | I88: 11.7
A90: Südtirol insgesamt | B90: Totale provincia | C90: 172104 | D90: -92.4 | E90: 624166 | F90: -93.6 | G90: 3.6 | H90: 228995 | I90: 1.5
